Workbook

Sheet Chart
F1: Note: You must enable macros for this workbook to update correctly
B2: =Data!AP181 -> MIL | C2: =Data!AQ181 -> 0 | D2: =Data!AR181 -> 0.5679012346
B3: =Data!AP182 -> CHC | C3: =Data!AQ182 -> 9 | D3: =Data!AR182 -> 0.512345679
B4: =Data!AP183 -> CIN | C4: =Data!AQ183 -> 10 | D4: =Data!AR183 -> 0.5061728395
B5: =Data!AP184 -> PIT | C5: =Data!AQ184 -> 16 | D5: =Data!AR184 -> 0.4691358025
B6: =Data!AP185 -> STL | C6: =Data!AQ185 -> 21 | D6: =Data!AR185 -> 0.4382716049
F52: Y-Axis = First-Place Lead Size (Brewers) (# of games)

Sheet Data
A1: NLC23 | B1: CHC | C1: W | D1: L | F1: CIN | G1: W | H1: L | J1: MIL | K1: W | L1: L | N1: PIT | O1: W | P1: L | R1: STL | S1: W | T1: L | V1: 2022 | W1: W | X1: L | AA1: =B1 -> CHC | AB1: =F1 -> CIN | AC1: =J1 -> MIL | AD1: =N1 -> PIT | AE1: =R1 -> STL | AF1: 2022 | AH1: =AA1 -> CHC | AI1: =AB1 -> CIN | AJ1: =AC1 -> MIL | AK1: =AD1 -> PIT | AL1: =AE1 -> STL
A2: 2023-03-29 | C2: 0 | D2: 0 | G2: 0 | H2: 0 | K2: 0 | L2: 0 | O2: 0 | P2: 0 | S2: 0 | T2: 0 | W2: 0 | X2: 0 | AA2: 0 | AB2: 0 | AC2: 0 | AD2: 0 | AE2: 0 | AF2: 0 | AH2: 0 | AI2: 0 | AJ2: 0 | AK2: 0 | AL2: 0 | AT2: =IF(AJ2 = 0, MIN(AH2:AI2, AK2:AL2), 0-AJ2) -> 0
A3: 2023-03-30 | B3: 1 | C3: =C2+IF(B3>0,B3,0) -> 1 | D3: =D2-IF(B3<0,B3,0) -> 0 | F3: -1 | G3: =G2+IF(F3>0,F3,0) -> 0 | H3: =H2-IF(F3<0,F3,0) -> 1 | J3: -1 | K3: =K2+IF(J3>0,J3,0) -> 0 | L3: =L2-IF(J3<0,J3,0) -> 1 | N3: 1 | O3: =O2+IF(N3>0,N3,0) -> 1 | P3: =P2-IF(N3<0,N3,0) -> 0 | R3: -1 | S3: =S2+IF(R3>0,R3,0) -> 0 | T3: =T2-IF(R3<0,R3,0) -> 1 | W3: =W2+IF(V3>0,V3,0) -> 0 | X3: =X2-IF(V3<0,V3,0) -> 0 | AA3: =C3-D3 -> 1 | AB3: =G3-H3 -> -1 | AC3: =K3-L3 -> -1 | AD3: =O3-P3 -> 1 | AE3: =S3-T3 -> -1 | AF3: =W3-X3 -> 0 | AH3: =(MAX($AA3:$AE3)-AA3)/2 -> 0 | AI3: =(MAX($AA3:$AE3)-AB3)/2 -> 1 | AJ3: =(MAX($AA3:$AE3)-AC3)/2 -> 1 | AK3: =(MAX($AA3:$AE3)-AD3)/2 -> 0 | AL3: =(MAX($AA3:$AE3)-AE3)/2 -> 1 | AP3: =AP181 -> MIL | AQ3: 0 | AR3: 0.5679012346 | AT3: -1
A4: =A3+1 -> 2023-03-31 | C4: =C3+IF(B4>0,B4,0) -> 1 | D4: =D3-IF(B4<0,B4,0) -> 0 | G4: 0 | H4: 1 | K4: 0 | L4: 1 | O4: 1 | P4: 0 | S4: 0 | T4: 1 | W4: =W3+IF(V4>0,V4,0) -> 0 | X4: =X3-IF(V4<0,V4,0) -> 0 | AA4: 1 | AB4: -1 | AC4: -1 | AD4: 1 | AE4: -1 | AF4: 0 | AH4: =(MAX($AA4:$AE4)-AA4)/2 -> 0 | AI4: =(MAX($AA4:$AE4)-AB4)/2 -> 1 | AJ4: =(MAX($AA4:$AE4)-AC4)/2 -> 1 | AK4: =(MAX($AA4:$AE4)-AD4)/2 -> 0 | AL4: =(MAX($AA4:$AE4)-AE4)/2 -> 1 | AP4: CHC | AQ4: 9 | AR4: 0.512345679 | AT4: -1
A5: =A4+1 -> 2023-04-01 | B5: -1 | C5: 1 | D5: 1 | F5: 1 | G5: 1 | H5: 1 | J5: 1 | K5: 1 | L5: 1 | N5: -1 | O5: 1 | P5: 1 | R5: 1 | S5: 1 | T5: 1 | W5: 0 | X5: 0 | AA5: 0 | AB5: 0 | AC5: 0 | AD5: 0 | AE5: 0 | AF5: 0 | AH5: 0 | AI5: 0 | AJ5: 0 | AK5: 0 | AL5: 0 | AP5: CIN | AQ5: 10 | AR5: 0.5061728395 | AT5: 0
A6: 2023-04-02 | B6: -1 | C6: 1 | D6: 2 | F6: 1 | G6: 2 | H6: 1 | J6: 1 | K6: 2 | L6: 1 | N6: -1 | O6: 1 | P6: 2 | R6: 1 | S6: 2 | T6: 1 | W6: 0 | X6: 0 | AA6: -1 | AB6: 1 | AC6: 1 | AD6: -1 | AE6: 1 | AF6: 0 | AH6: 1 | AI6: 0 | AJ6: 0 | AK6: 1 | AL6: 0 | AP6: PIT | AQ6: 16 | AR6: 0.4691358025 | AT6: 0
A7: 2023-04-03 | B7: -1 | C7: 1 | D7: 3 | F7: 1 | G7: 3 | H7: 1 | J7: 1 | K7: 3 | L7: 1 | N7: 1 | O7: 2 | P7: 2 | R7: -1 | S7: 2 | T7: 2 | W7: 0 | X7: 0 | AA7: -2 | AB7: 2 | AC7: 2 | AD7: 0 | AE7: 0 | AF7: 0 | AH7: 2 | AI7: 0 | AJ7: 0 | AK7: 1 | AL7: 1 | AP7: STL | AQ7: 21 | AR7: 0.4382716049 | AT7: 0
A8: 2023-04-04 | B8: 1 | C8: 2 | D8: 3 | F8: -1 | G8: 3 | H8: 2 | J8: 1 | K8: 4 | L8: 1 | N8: 1 | O8: 3 | P8: 2 | R8: -1 | S8: 2 | T8: 3 | V8: -1 | W8: 0 | X8: 1 | AA8: -1 | AB8: 1 | AC8: 3 | AD8: 1 | AE8: -1 | AF8: -1 | AH8: 2 | AI8: 1 | AJ8: 0 | AK8: 1 | AL8: 2 | AT8: 1
A9: 2023-04-05 | C9: =C8+IF(B9>0,B9,0) -> 2 | D9: =D8-IF(B9<0,B9,0) -> 3 | G9: =G8+IF(F9>0,F9,0) -> 3 | H9: =H8-IF(F9<0,F9,0) -> 2 | J9: 1 | K9: 5 | L9: 1 | N9: 1 | O9: 4 | P9: 2 | R9: -1 | S9: 2 | T9: 4 | W9: 0 | X9: 1 | AA9: -1 | AB9: 1 | AC9: 4 | AD9: 2 | AE9: -2 | AF9: -1 | AH9: 2.5 | AI9: 1.5 | AJ9: 0 | AK9: 1 | AL9: 3 | AT9: 1
A10: 2023-04-06 | C10: 2 | D10: 3 | G10: 3 | H10: 2 | K10: 5 | L10: 1 | O10: 4 | P10: 2 | S10: 2 | T10: 4 | V10: -1 | W10: 0 | X10: 2 | AA10: -1 | AB10: 1 | AC10: 4 | AD10: 2 | AE10: -2 | AF10: -2 | AH10: 2.5 | AI10: 1.5 | AJ10: 0 | AK10: 1 | AL10: 3 | AT10: 1
A11: 2023-04-07 | B11: 1 | C11: 3 | D11: 3 | F11: -1 | G11: 3 | H11: 3 | J11: 1 | K11: 6 | L11: 1 | N11: 1 | O11: 5 | P11: 2 | R11: -1 | S11: 2 | T11: 5 | V11: 1 | W11: 1 | X11: 2 | AA11: 0 | AB11: 0 | AC11: 5 | AD11: 3 | AE11: -3 | AF11: -1 | AH11: 2.5 | AI11: 2.5 | AJ11: 0 | AK11: 1 | AL11: 4 | AT11: 1
A12: 2023-04-08 | B12: 1 | C12: 4 | D12: 3 | F12: -1 | G12: 3 | H12: 4 | J12: -1 | K12: 6 | L12: 2 | N12: -1 | O12: 5 | P12: 3 | R12: 1 | S12: 3 | T12: 5 | V12: -1 | W12: 1 | X12: 3 | AA12: 1 | AB12: -1 | AC12: 4 | AD12: 2 | AE12: -2 | AF12: -2 | AH12: 1.5 | AI12: 2.5 | AJ12: 0 | AK12: 1 | AL12: 3 | AT12: 1
A13: 2023-04-09 | B13: -1 | C13: 4 | D13: 4 | F13: 1 | G13: 4 | H13: 4 | J13: 1 | K13: 7 | L13: 2 | N13: 1 | O13: 6 | P13: 3 | R13: -1 | S13: 3 | T13: 6 | V13: 1 | W13: 2 | X13: 3 | AA13: 0 | AB13: 0 | AC13: 5 | AD13: 3 | AE13: -3 | AF13: -1 | AH13: 2.5 | AI13: 2.5 | AJ13: 0 | AK13: 1 | AL13: 4 | AT13: 1
A14: 2023-04-10 | B14: 1 | C14: 5 | D14: 4 | F14: -1 | G14: 4 | H14: 5 | J14: -1 | K14: 7 | L14: 3 | N14: -1 | O14: 6 | P14: 4 | R14: -1 | S14: 3 | T14: 7 | V14: 1 | W14: 3 | X14: 3 | AA14: 1 | AB14: -1 | AC14: 4 | AD14: 2 | AE14: -4 | AF14: 0 | AH14: 1.5 | AI14: 2.5 | AJ14: 0 | AK14: 1 | AL14: 4 | AT14: 1
A15: 2023-04-11 | B15: 1 | C15: 6 | D15: 4 | F15: -1 | G15: 4 | H15: 6 | J15: 1 | K15: 8 | L15: 3 | N15: 1 | O15: 7 | P15: 4 | R15: 1 | S15: 4 | T15: 7 | V15: 1 | W15: 4 | X15: 3 | AA15: 2 | AB15: -2 | AC15: 5 | AD15: 3 | AE15: -3 | AF15: 1 | AH15: 1.5 | AI15: 3.5 | AJ15: 0 | AK15: 1 | AL15: 4 | AT15: 1
A16: 2023-04-12 | B16: -1 | C16: 6 | D16: 5 | F16: -1 | G16: 4 | H16: 7 | J16: -1 | K16: 8 | L16: 4 | N16: -1 | O16: 7 | P16: 5 | R16: 1 | S16: 5 | T16: 7 | V16: -1 | W16: 4 | X16: 4 | AA16: 1 | AB16: -3 | AC16: 4 | AD16: 2 | AE16: -2 | AF16: 0 | AH16: 1.5 | AI16: 3.5 | AJ16: 0 | AK16: 1 | AL16: 3 | AT16: 1
A17: 2023-04-13 | C17: 6 | D17: 5 | F17: 1 | G17: 5 | H17: 7 | J17: 1 | K17: 9 | L17: 4 | N17: 1 | O17: 8 | P17: 5 | R17: -1 | S17: 5 | T17: 8 | V17: -1 | W17: 4 | X17: 5 | AA17: 1 | AB17: -2 | AC17: 5 | AD17: 3 | AE17: -3 | AF17: -1 | AH17: 2 | AI17: 3.5 | AJ17: 0 | AK17: 1 | AL17: 4 | AT17: 1
A18: 2023-04-14 | B18: 1 | C18: 7 | D18: 5 | F18: -1 | G18: 5 | H18: 8 | J18: 1 | K18: 10 | L18: 4 | N18: -1 | O18: 8 | P18: 6 | R18: 1 | S18: 6 | T18: 8 | V18: 1 | W18: 5 | X18: 5 | AA18: 2 | AB18: -3 | AC18: 6 | AD18: 2 | AE18: -2 | AF18: 0 | AH18: 2 | AI18: 4.5 | AJ18: 0 | AK18: 2 | AL18: 4 | AT18: 2
A19: 2023-04-15 | B19: -1 | C19: 7 | D19: 6 | F19: 1 | G19: 6 | H19: 8 | J19: -1 | K19: 10 | L19: 5 | N19: 1 | O19: 9 | P19: 6 | R19: -1 | S19: 6 | T19: 9 | V19: 1 | W19: 6 | X19: 5 | AA19: 1 | AB19: -2 | AC19: 5 | AD19: 3 | AE19: -3 | AF19: 1 | AH19: 2 | AI19: 3.5 | AJ19: 0 | AK19: 1 | AL19: 4 | AT19: 1
A20: 2023-04-16 | B20: 1 | C20: 8 | D20: 6 | F20: -1 | G20: 6 | H20: 9 | J20: 1 | K20: 11 | L20: 5 | N20: -1 | O20: 9 | P20: 7 | R20: 1 | S20: 7 | T20: 9 | V20: 1 | W20: 7 | X20: 5 | AA20: 2 | AB20: -3 | AC20: 6 | AD20: 2 | AE20: -2 | AF20: 2 | AH20: 2 | AI20: 4.5 | AJ20: 0 | AK20: 2 | AL20: 4 | AT20: 2
A21: 2023-04-17 | B21: 1 | C21: 9 | D21: 6 | F21: 1 | G21: 7 | H21: 9 | J21: 1 | K21: 12 | L21: 5 | N21: 1 | O21: 10 | P21: 7 | R21: -1 | S21: 7 | T21: 10 | V21: 1 | W21: 8 | X21: 5 | AA21: 3 | AB21: -2 | AC21: 7 | AD21: 3 | AE21: -3 | AF21: 3 | AH21: 2 | AI21: 4.5 | AJ21: 0 | AK21: 2 | AL21: 5 | AT21: 2
A22: 2023-04-18 | B22: 1 | C22: 10 | D22: 6 | F22: -1 | G22: 7 | H22: 10 | J22: 1 | K22: 13 | L22: 5 | N22: 1 | O22: 11 | P22: 7 | R22: -1 | S22: 7 | T22: 11 | W22: 8 | X22: 5 | AA22: 4 | AB22: -3 | AC22: 8 | AD22: 4 | AE22: -4 | AF22: 3 | AH22: 2 | AI22: 5.5 | AJ22: 0 | AK22: 2 | AL22: 6 | AT22: 2
A23: 2023-04-19 | B23: 1 | C23: 11 | D23: 6 | F23: -1 | G23: 7 | H23: 11 | J23: 1 | K23: 14 | L23: 5 | N23: 1 | O23: =O22+IF(N23>0,N23,0) -> 12 | P23: =P22-IF(N23<0,N23,0) -> 7 | R23: 1 | S23: =S22+IF(R23>0,R23,0) -> 8 | T23: =T22-IF(R23<0,R23,0) -> 11 | V23: -1 | W23: 8 | X23: 6 | AA23: 5 | AB23: -4 | AC23: 9 | AD23: 5 | AE23: -3 | AF23: 2 | AH23: 2 | AI23: 6.5 | AJ23: 0 | AK23: 2 | AL23: 6 | AT23: 2
A24: 2023-04-20 | B24: -1 | C24: 11 | D24: 7 | F24: -1 | G24: 7 | H24: 12 | K24: 14 | L24: 5 | N24: 1 | O24: 13 | P24: 7 | S24: 8 | T24: 11 | V24: 1 | W24: 9 | X24: 6 | AA24: 4 | AB24: -5 | AC24: 9 | AD24: 6 | AE24: -3 | AF24: 3 | AH24: 2.5 | AI24: 7 | AJ24: 0 | AK24: 1.5 | AL24: 6 | AT24: 1.5
A25: 2023-04-21 | B25: 1 | C25: 12 | D25: 7 | F25: -1 | G25: 7 | H25: 13 | J25: -1 | K25: 14 | L25: 6 | N25: 1 | O25: 14 | P25: 7 | R25: -1 | S25: 8 | T25: 12 | V25: 1 | W25: 10 | X25: 6 | AA25: 5 | AB25: -6 | AC25: 8 | AD25: 7 | AE25: -4 | AF25: 4 | AH25: 1.5 | AI25: 7 | AJ25: 0 | AK25: 0.5 | AL25: 6 | AT25: 0.5
A26: 2023-04-22 | B26: -1 | C26: 12 | D26: 8 | F26: -1 | G26: 7 | H26: 14 | J26: 1 | K26: 15 | L26: 6 | N26: 1 | O26: 15 | P26: 7 | R26: -1 | S26: 8 | T26: 13 | V26: -1 | W26: 10 | X26: 7 | AA26: 4 | AB26: -7 | AC26: 9 | AD26: 8 | AE26: -5 | AF26: 3 | AH26: 2.5 | AI26: 8 | AJ26: 0 | AK26: 0.5 | AL26: 7 | AT26: 0.5
A27: 2023-04-23 | B27: -1 | C27: 12 | D27: 9 | F27: -1 | G27: 7 | H27: 15 | J27: -1 | K27: 15 | L27: 7 | N27: 1 | O27: 16 | P27: 7 | R27: 1 | S27: 9 | T27: 13 | V27: 1 | W27: 11 | X27: 7 | AA27: 3 | AB27: -8 | AC27: 8 | AD27: 9 | AE27: -4 | AF27: 4 | AH27: 3 | AI27: 8.5 | AJ27: 0.5 | AK27: 0 | AL27: 6.5 | AT27: -0.5
A28: 2023-04-24 | C28: 12 | D28: 9 | F28: 1 | G28: 8 | H28: 15 | J28: -1 | K28: 15 | L28: 8 | O28: 16 | P28: 7 | R28: -1 | S28: 9 | T28: 14 | V28: 1 | W28: 12 | X28: 7 | AA28: 3 | AB28: -7 | AC28: 7 | AD28: 9 | AE28: -5 | AF28: 5 | AH28: 3 | AI28: 8 | AJ28: 1 | AK28: 0 | AL28: 7 | AT28: -1
A29: 2023-04-25 | B29: 1 | C29: 13 | D29: 9 | F29: 1 | G29: 9 | H29: 15 | J29: -1 | K29: 15 | L29: 9 | N29: -1 | O29: 16 | P29: 8 | R29: -1 | S29: 9 | T29: 15 | V29: 1 | W29: 13 | X29: 7 | AA29: 4 | AB29: -6 | AC29: 6 | AD29: 8 | AE29: -6 | AF29: 6 | AH29: 2 | AI29: 7 | AJ29: 1 | AK29: 0 | AL29: 7 | AT29: -1
A30: 2023-04-26 | B30: -1 | C30: 13 | D30: 10 | F30: 1 | G30: 10 | H30: 15 | J30: 1 | K30: 16 | L30: 9 | N30: 1 | O30: =O29+IF(N30>0,N30,0) -> 17 | P30: =P29-IF(N30<0,N30,0) -> 8 | R30: -1 | S30: 9 | T30: 16 | V30: 1 | W30: 14 | X30: 7 | AA30: 3 | AB30: -5 | AC30: 7 | AD30: 9 | AE30: -7 | AF30: 7 | AH30: 3 | AI30: 7 | AJ30: 1 | AK30: 0 | AL30: 8 | AT30: -1
A31: 2023-04-27 | B31: 1 | C31: 14 | D31: 10 | G31: 10 | H31: 15 | K31: 16 | L31: 9 | N31: 1 | O31: 18 | P31: 8 | R31: 1 | S31: 10 | T31: 16 | V31: 1 | W31: 15 | X31: 7 | AA31: 4 | AB31: -5 | AC31: 7 | AD31: 10 | AE31: -6 | AF31: 8 | AH31: 3 | AI31: 7.5 | AJ31: 1.5 | AK31: 0 | AL31: 8 | AT31: -1.5
A32: 2023-04-28 | B32: -1 | C32: 14 | D32: 11 | F32: 1 | G32: 11 | H32: 15 | J32: 1 | K32: 17 | L32: 9 | O32: 18 | P32: 8 | R32: -1 | S32: 10 | T32: 17 | V32: -1 | W32: 15 | X32: 8 | AA32: 3 | AB32: -4 | AC32: 8 | AD32: 10 | AE32: -7 | AF32: 7 | AH32: 3.5 | AI32: 7 | AJ32: 1 | AK32: 0 | AL32: 8.5 | AT32: -1
A33: 2023-04-29 | B33: -1 | C33: 14 | D33: 12 | F33: 1 | G33: 12 | H33: 15 | J33: 1 | K33: 18 | L33: 9 | N33: 2 | O33: 20 | P33: 8 | R33: -1 | S33: 10 | T33: 18 | W33: 15 | X33: 8 | AA33: 2 | AB33: -3 | AC33: 9 | AD33: 12 | AE33: -8 | AF33: 7 | AH33: 5 | AI33: 7.5 | AJ33: 1.5 | AK33: 0 | AL33: 10 | AT33: -1.5
A34: 2023-04-30 | B34: -1 | C34: 14 | D34: 13 | F34: -1 | G34: 12 | H34: 16 | J34: -1 | K34: 18 | L34: 10 | N34: -1 | O34: =O33+IF(N34>0,N34,0) -> 20 | P34: =P33-IF(N34<0,N34,0) -> 9 | R34: -1 | S34: 10 | T34: 19 | V34: 1 | W34: 16 | X34: 8 | AA34: 1 | AB34: -4 | AC34: 8 | AD34: 11 | AE34: -9 | AF34: 8 | AH34: 5 | AI34: 7.5 | AJ34: 1.5 | AK34: 0 | AL34: 10 | AT34: =IF(AJ34 = 0, MIN(AH34:AI34, AK34:AL34), 0-AJ34) -> -1.5
A35: 2023-05-01 | B35: 1 | C35: 15 | D35: 13 | F35: -1 | G35: 12 | H35: 17 | K35: 18 | L35: 10 | O35: 20 | P35: 9 | S35: 10 | T35: 19 | V35: 1 | W35: 17 | X35: 8 | AA35: =C35-D35 -> 2 | AB35: =G35-H35 -> -5 | AC35: =K35-L35 -> 8 | AD35: =O35-P35 -> 11 | AE35: =S35-T35 -> -9 | AF35: =W35-X35 -> 9 | AH35: 4.5 | AI35: 8 | AJ35: 1.5 | AK35: 0 | AL35: 10 | AT35: -1.5
A36: 2023-05-02 | B36: -1 | C36: 15 | D36: 14 | F36: 1 | G36: 13 | H36: 17 | J36: -1 | K36: 18 | L36: 11 | N36: -1 | O36: 20 | P36: 10 | R36: -1 | S36: 10 | T36: 20 | V36: 1 | W36: 18 | X36: 8 | AA36: 1 | AB36: -4 | AC36: 7 | AD36: 10 | AE36: -10 | AF36: 10 | AH36: 4.5 | AI36: 7 | AJ36: 1.5 | AK36: 0 | AL36: =(MAX($AA36:$AE36)-AE36)/2 -> 10 | AT36: -1.5
A37: 2023-05-03 | B37: -1 | C37: 15 | D37: 15 | F37: -1 | G37: 13 | H37: 18 | J37: -1 | K37: 18 | L37: 12 | N37: -1 | O37: 20 | P37: 11 | R37: -1 | S37: =S36+IF(R37>0,R37,0) -> 10 | T37: =T36-IF(R37<0,R37,0) -> 21 | V37: 1 | W37: 19 | X37: 8 | AA37: 0 | AB37: -5 | AC37: 6 | AD37: 9 | AE37: -11 | AF37: 11 | AH37: 4.5 | AI37: 7 | AJ37: 1.5 | AK37: 0 | AL37: 10 | AT37: -1.5
A38: 2023-05-04 | B38: -1 | C38: 15 | D38: 16 | G38: 13 | H38: 18 | J38: -1 | K38: 18 | L38: 13 | N38: -1 | O38: 20 | P38: 12 | R38: -1 | S38: 10 | T38: 22 | V38: -1 | W38: 19 | X38: 9 | AA38: -1 | AB38: -5 | AC38: 5 | AD38: 8 | AE38: -12 | AF38: 10 | AH38: 4.5 | AI38: 6.5 | AJ38: 1.5 | AK38: 0 | AL38: 10 | AT38: -1.5
A39: 2023-05-05 | B39: 1 | C39: 16 | D39: 16 | F39: -1 | G39: 13 | H39: 19 | J39: -1 | K39: =K38+IF(J39>0,J39,0) -> 18 | L39: =L38-IF(J39<0,J39,0) -> 14 | N39: -1 | O39: 20 | P39: 13 | R39: -1 | S39: =S38+IF(R39>0,R39,0) -> 10 | T39: =T38-IF(R39<0,R39,0) -> 23 | V39: -1 | W39: 19 | X39: 10 | AA39: 0 | AB39: -6 | AC39: 4 | AD39: 7 | AE39: -13 | AF39: 9 | AH39: 3.5 | AI39: 6.5 | AJ39: 1.5 | AK39: 0 | AL39: 10 | AT39: -1.5
A40: 2023-05-06 | B40: 1 | C40: 17 | D40: 16 | F40: 1 | G40: 14 | H40: 19 | J40: -1 | K40: 18 | L40: 15 | N40: -1 | O40: 20 | P40: 14 | R40: -1 | S40: 10 | T40: 24 | V40: -1 | W40: 19 | X40: 11 | AA40: 1 | AB40: -5 | AC40: 3 | AD40: 6 | AE40: -14 | AF40: 8 | AH40: 2.5 | AI40: 5.5 | AJ40: 1.5 | AK40: 0 | AL40: 10 | AT40: -1.5
A41: 2023-05-07 | B41: -1 | C41: 17 | D41: 17 | F41: -1 | G41: 14 | H41: 20 | J41: 1 | K41: 19 | L41: 15 | N41: -1 | O41: 20 | P41: 15 | R41: 1 | S41: 11 | T41: 24 | V41: 1 | W41: 20 | X41: 11 | AA41: 0 | AB41: -6 | AC41: 4 | AD41: 5 | AE41: -13 | AF41: 9 | AH41: 2.5 | AI41: 5.5 | AJ41: 0.5 | AK41: 0 | AL41: 9 | AT41: -0.5
A42: 2023-05-08 | B42: -1 | C42: 17 | D42: 18 | G42: 14 | H42: 20 | J42: 1 | K42: 20 | L42: 15 | N42: 1 | O42: 21 | P42: 15 | R42: 1 | S42: 12 | T42: 24 | V42: -1 | W42: 20 | X42: 12 | AA42: -1 | AB42: -6 | AC42: 5 | AD42: 6 | AE42: -12 | AF42: 8 | AH42: 3.5 | AI42: 6 | AJ42: 0.5 | AK42: 0 | AL42: 9 | AT42: -0.5
A43: 2023-05-09 | B43: -1 | C43: 17 | D43: 19 | F43: 1 | G43: 15 | H43: 20 | J43: -1 | K43: 20 | L43: 16 | N43: -1 | O43: 21 | P43: 16 | R43: 1 | S43: 13 | T43: 24 | W43: 20 | X43: 12 | AA43: -2 | AB43: -5 | AC43: 4 | AD43: 5 | AE43: -11 | AF43: 8 | AH43: 3.5 | AI43: 5 | AJ43: 0.5 | AK43: 0 | AL43: 8 | AT43: -0.5
A44: 2023-05-10 | B44: 1 | C44: 18 | D44: 19 | F44: -1 | G44: 15 | H44: 21 | J44: -1 | K44: 20 | L44: 17 | N44: -1 | O44: 21 | P44: 17 | R44: -1 | S44: 13 | T44: 25 | V44: 1 | W44: 21 | X44: 12 | AA44: -1 | AB44: -6 | AC44: 3 | AD44: 4 | AE44: -12 | AF44: 9 | AH44: 2.5 | AI44: 5 | AJ44: 0.5 | AK44: 0 | AL44: 8 | AT44: -0.5
A45: 2023-05-11 | C45: 18 | D45: 19 | F45: 1 | G45: 16 | H45: 21 | K45: =K44+IF(J45>0,J45,0) -> 20 | L45: =L44-IF(J45<0,J45,0) -> 17 | O45: 21 | P45: 17 | S45: =S44+IF(R45>0,R45,0) -> 13 | T45: =T44-IF(R45<0,R45,0) -> 25 | V45: -1 | W45: 21 | X45: 13 | AA45: -1 | AB45: -5 | AC45: 3 | AD45: 4 | AE45: -12 | AF45: 8 | AH45: 2.5 | AI45: 4.5 | AJ45: 0.5 | AK45: 0 | AL45: 8 | AT45: -0.5
A46: 2023-05-12 | B46: 1 | C46: 19 | D46: 19 | F46: 1 | G46: 17 | H46: 21 | J46: 1 | K46: 21 | L46: 17 | N46: -1 | O46: 21 | P46: 18 | R46: 1 | S46: 14 | T46: 25 | V46: 1 | W46: 22 | X46: 13 | AA46: 0 | AB46: -4 | AC46: 4 | AD46: 3 | AE46: -11 | AF46: 9 | AH46: 2 | AI46: 4 | AJ46: 0 | AK46: 0.5 | AL46: 7.5 | AT46: 0.5
A47: 2023-05-13 | B47: -1 | C47: 19 | D47: 20 | F47: 1 | G47: 18 | H47: 21 | J47: 1 | K47: 22 | L47: 17 | N47: -1 | O47: 21 | P47: 19 | R47: 1 | S47: 15 | T47: 25 | V47: 1 | W47: 23 | X47: 13 | AA47: -1 | AB47: -3 | AC47: 5 | AD47: 2 | AE47: -10 | AF47: 10 | AH47: 3 | AI47: 4 | AJ47: 0 | AK47: 1.5 | AL47: 7.5 | AT47: 1.5
A48: 2023-05-14 | B48: -1 | C48: 19 | D48: 21 | F48: -1 | G48: 18 | H48: 22 | J48: 1 | K48: 23 | L48: 17 | N48: 1 | O48: 22 | P48: 19 | R48: 1 | S48: 16 | T48: 25 | V48: -1 | W48: 23 | X48: 14 | AA48: -2 | AB48: -4 | AC48: 6 | AD48: 3 | AE48: -9 | AF48: 9 | AH48: 4 | AI48: 5 | AJ48: 0 | AK48: 1.5 | AL48: 7.5 | AT48: 1.5
A49: 2023-05-15 | B49: -1 | C49: 19 | D49: 22 | F49: -1 | G49: 18 | H49: 23 | J49: -1 | K49: 23 | L49: 18 | O49: 22 | P49: 19 | R49: 1 | S49: 17 | T49: 25 | V49: 1 | W49: 24 | X49: 14 | AA49: -3 | AB49: -5 | AC49: 5 | AD49: 3 | AE49: -8 | AF49: 10 | AH49: 4 | AI49: 5 | AJ49: 0 | AK49: 1 | AL49: 6.5 | AT49: 1
A50: 2023-05-16 | B50: -1 | C50: 19 | D50: 23 | F50: 1 | G50: 19 | H50: 23 | J50: 1 | K50: 24 | L50: 18 | N50: -1 | O50: 22 | P50: 20 | R50: -1 | S50: 17 | T50: 26 | W50: 24 | X50: 14 | AA50: -4 | AB50: -4 | AC50: 6 | AD50: 2 | AE50: -9 | AF50: 10 | AH50: 5 | AI50: 5 | AJ50: 0 | AK50: 2 | AL50: 7.5 | AT50: 2
A51: 2023-05-17 | B51: -1 | C51: 19 | D51: 24 | F51: -1 | G51: 19 | H51: 24 | J51: -1 | K51: 24 | L51: 19 | N51: 1 | O51: 23 | P51: 20 | R51: 1 | S51: 18 | T51: 26 | V51: 1 | W51: 25 | X51: 14 | AA51: -5 | AB51: -5 | AC51: 5 | AD51: 3 | AE51: -8 | AF51: 11 | AH51: 5 | AI51: 5 | AJ51: 0 | AK51: 1 | AL51: 6.5 | AT51: 1
A52: 2023-05-18 | C52: 19 | D52: 24 | G52: 19 | H52: 24 | K52: 24 | L52: 19 | O52: 23 | P52: 20 | R52: 1 | S52: 19 | T52: 26 | V52: 1 | W52: 26 | X52: 14 | AA52: -5 | AB52: -5 | AC52: 5 | AD52: 3 | AE52: -7 | AF52: 12 | AH52: 5 | AI52: 5 | AJ52: 0 | AK52: 1 | AL52: 6 | AT52: 1
A53: 2023-05-19 | B53: 1 | C53: 20 | D53: 24 | F53: -1 | G53: 19 | H53: 25 | J53: -1 | K53: 24 | L53: 20 | N53: 1 | O53: 24 | P53: 20 | R53: -1 | S53: 19 | T53: 27 | V53: -1 | W53: 26 | X53: 15 | AA53: -4 | AB53: -6 | AC53: 4 | AD53: 4 | AE53: -8 | AF53: 11 | AH53: 4 | AI53: 5 | AJ53: 0 | AK53: 0 | AL53: 6 | AT53: 0
A54: 2023-05-20 | B54: -1 | C54: 20 | D54: 25 | F54: -1 | G54: 19 | H54: 26 | J54: -1 | K54: 24 | L54: 21 | N54: -1 | O54: 24 | P54: 21 | R54: 1 | S54: 20 | T54: 27 | V54: -1 | W54: 26 | X54: 16 | AA54: -5 | AB54: -7 | AC54: 3 | AD54: 3 | AE54: -7 | AF54: 10 | AH54: 4 | AI54: 5 | AJ54: 0 | AK54: 0 | AL54: 5 | AT54: 0
A55: 2023-05-21 | B55: -1 | C55: 20 | D55: 26 | F55: -1 | G55: 19 | H55: 27 | J55: 1 | K55: 25 | L55: 21 | N55: -1 | O55: 24 | P55: 22 | R55: 1 | S55: 21 | T55: 27 | V55: 1 | W55: 27 | X55: 16 | AA55: -6 | AB55: -8 | AC55: 4 | AD55: 2 | AE55: -6 | AF55: 11 | AH55: 5 | AI55: 6 | AJ55: 0 | AK55: 1 | AL55: 5 | AT55: 1
A56: 2023-05-22 | C56: 20 | D56: 26 | F56: 1 | G56: 20 | H56: 27 | J56: -1 | K56: 25 | L56: 22 | N56: 1 | O56: 25 | P56: 22 | R56: -1 | S56: 21 | T56: 28 | V56: 1 | W56: 28 | X56: 16 | AA56: -6 | AB56: -7 | AC56: 3 | AD56: 3 | AE56: -7 | AF56: 12 | AH56: 4.5 | AI56: 5 | AJ56: 0 | AK56: 0 | AL56: 5 | AT56: 0
A57: 2023-05-23 | B57: 1 | C57: 21 | D57: 26 | F57: -1 | G57: 20 | H57: 28 | J57: 1 | K57: 26 | L57: 22 | N57: -1 | O57: 25 | P57: 23 | R57: 1 | S57: 22 | T57: 28 | V57: 1 | W57: 29 | X57: 16 | AA57: -5 | AB57: -8 | AC57: 4 | AD57: 2 | AE57: -6 | AF57: 13 | AH57: 4.5 | AI57: 6 | AJ57: 0 | AK57: 1 | AL57: 5 | AT57: 1
A58: 2023-05-24 | B58: 1 | C58: 22 | D58: 26 | F58: 1 | G58: 21 | H58: 28 | J58: 1 | K58: 27 | L58: 22 | N58: -1 | O58: 25 | P58: 24 | R58: -1 | S58: 22 | T58: 29 | V58: -1 | W58: 29 | X58: 17 | AA58: -4 | AB58: -7 | AC58: 5 | AD58: 1 | AE58: -7 | AF58: 12 | AH58: 4.5 | AI58: 6 | AJ58: 0 | AK58: 2 | AL58: 6 | AT58: 2
A59: 2023-05-25 | B59: -1 | C59: 22 | D59: 27 | F59: -1 | G59: 21 | H59: 29 | J59: -1 | K59: 27 | L59: 23 | O59: 25 | P59: 24 | R59: 1 | S59: 23 | T59: 29 | V59: -1 | W59: 29 | X59: 18 | AA59: -5 | AB59: -8 | AC59: 4 | AD59: 1 | AE59: -6 | AF59: 11 | AH59: 4.5 | AI59: 6 | AJ59: 0 | AK59: 1.5 | AL59: 5 | AT59: 1.5
A60: 2023-05-26 | B60: -1 | C60: 22 | D60: 28 | F60: 1 | G60: 22 | H60: 29 | J60: -1 | K60: 27 | L60: 24 | N60: 1 | O60: 26 | P60: 24 | R60: -1 | S60: 23 | T60: 30 | V60: 1 | W60: 30 | X60: 18 | AA60: -6 | AB60: -7 | AC60: 3 | AD60: 2 | AE60: -7 | AF60: 12 | AH60: 4.5 | AI60: 5 | AJ60: 0 | AK60: 0.5 | AL60: 5 | AT60: 0.5
A61: 2023-05-27 | B61: -1 | C61: 22 | D61: 29 | F61: 1 | G61: 23 | H61: 29 | J61: -1 | K61: 27 | L61: 25 | N61: -1 | O61: 26 | P61: 25 | R61: 1 | S61: 24 | T61: 30 | V61: 2 | W61: 32 | X61: 18 | AA61: -7 | AB61: -6 | AC61: 2 | AD61: 1 | AE61: -6 | AF61: 14 | AH61: 4.5 | AI61: 4 | AJ61: 0 | AK61: 0.5 | AL61: 4 | AT61: 0.5
A62: 2023-05-28 | B62: -1 | C62: 22 | D62: 30 | F62: 1 | G62: 24 | H62: 29 | J62: 1 | K62: 28 | L62: 25 | N62: -1 | O62: 26 | P62: 26 | R62: -1 | S62: 24 | T62: 31 | V62: -1 | W62: 32 | X62: 19 | AA62: -8 | AB62: -5 | AC62: 3 | AD62: 0 | AE62: -7 | AF62: 13 | AH62: 5.5 | AI62: 4 | AJ62: 0 | AK62: 1.5 | AL62: 5 | AT62: 1.5
A63: 2023-05-29 | B63: 1 | C63: 23 | D63: 30 | G63: 24 | H63: 29 | K63: 28 | L63: 25 | N63: -1 | O63: 26 | P63: 27 | R63: -1 | S63: 24 | T63: 32 | V63: -1 | W63: 32 | X63: 20 | AA63: -7 | AB63: -5 | AC63: 3 | AD63: -1 | AE63: -8 | AF63: 12 | AH63: 5 | AI63: 4 | AJ63: 0 | AK63: 2 | AL63: 5.5 | AT63: 2
A64: 2023-05-30 | B64: 1 | C64: 24 | D64: 30 | F64: 1 | G64: 25 | H64: 29 | J64: -1 | K64: 28 | L64: 26 | N64: 1 | O64: 27 | P64: 27 | R64: 1 | S64: 25 | T64: 32 | V64: 1 | W64: 33 | X64: 20 | AA64: -6 | AB64: -4 | AC64: 2 | AD64: 0 | AE64: -7 | AF64: 13 | AH64: 4 | AI64: 3 | AJ64: 0 | AK64: 1 | AL64: 4.5 | AT64: 1
A65: 2023-05-31 | B65: -1 | C65: 24 | D65: 31 | F65: 1 | G65: 26 | H65: 29 | J65: 1 | K65: =K64+IF(J65>0,J65,0) -> 29 | L65: =L64-IF(J65<0,J65,0) -> 26 | N65: 1 | O65: 28 | P65: 27 | S65: 25 | T65: 32 | V65: -1 | W65: 33 | X65: 21 | AA65: -7 | AB65: -3 | AC65: 3 | AD65: 1 | AE65: -7 | AF65: 12 | AH65: 5 | AI65: 3 | AJ65: 0 | AK65: 1 | AL65: 5 | AT65: 1
A66: 2023-06-01 | C66: 24 | D66: 31 | F66: -1 | G66: 26 | H66: 30 | J66: -1 | K66: 29 | L66: 27 | O66: 28 | P66: 27 | S66: 25 | T66: 32 | V66: -1 | W66: 33 | X66: 22 | AA66: -7 | AB66: -4 | AC66: 2 | AD66: 1 | AE66: -7 | AF66: 11 | AH66: 4.5 | AI66: 3 | AJ66: 0 | AK66: 0.5 | AL66: 4.5 | AT66: =IF(AJ66 = 0, MIN(AH66:AI66, AK66:AL66), 0-AJ66) -> 0.5
A67: 2023-06-02 | B67: 1 | C67: 25 | D67: 31 | F67: -1 | G67: 26 | H67: 31 | J67: 1 | K67: 30 | L67: 27 | N67: 1 | O67: 29 | P67: 27 | R67: -1 | S67: 25 | T67: 33 | V67: -1 | W67: 33 | X67: 23 | AA67: =C67-D67 -> -6 | AB67: =G67-H67 -> -5 | AC67: =K67-L67 -> 3 | AD67: =O67-P67 -> 2 | AE67: =S67-T67 -> -8 | AF67: =W67-X67 -> 10 | AH67: 4.5 | AI67: 4 | AJ67: 0 | AK67: 0.5 | AL67: 5.5 | AT67: 0.5
A68: 2023-06-03 | B68: -1 | C68: 25 | D68: 32 | F68: -1 | G68: 26 | H68: 32 | J68: 1 | K68: 31 | L68: 27 | N68: 1 | O68: 30 | P68: 27 | R68: -1 | S68: 25 | T68: 34 | W68: =W67+IF(V68>0,V68,0) -> 33 | X68: =X67-IF(V68<0,V68,0) -> 23 | AA68: -7 | AB68: -6 | AC68: 4 | AD68: 3 | AE68: -9 | AF68: 10 | AH68: =(MAX($AA68:$AE68)-AA68)/2 -> 5.5 | AI68: =(MAX($AA68:$AE68)-AB68)/2 -> 5 | AJ68: =(MAX($AA68:$AE68)-AC68)/2 -> 0 | AK68: =(MAX($AA68:$AE68)-AD68)/2 -> 0.5 | AL68: =(MAX($AA68:$AE68)-AE68)/2 -> 6.5 | AT68: 0.5
A69: =A68+1 -> 2023-06-04 | B69: 1 | C69: 26 | D69: 32 | F69: -1 | G69: 26 | H69: 33 | J69: 1 | K69: 32 | L69: 27 | N69: 1 | O69: 31 | P69: 27 | R69: -1 | S69: 25 | T69: 35 | V69: -1 | W69: 33 | X69: 24 | AA69: -6 | AB69: -7 | AC69: 5 | AD69: 4 | AE69: -10 | AF69: 9 | AH69: 5.5 | AI69: 6 | AJ69: 0 | AK69: 0.5 | AL69: 7.5 | AT69: 0.5
A70: 2023-06-05 | B70: -1 | C70: 26 | D70: 33 | F70: 1 | G70: 27 | H70: 33 | J70: -1 | K70: 32 | L70: 28 | N70: 1 | O70: 32 | P70: 27 | R70: -1 | S70: 25 | T70: 36 | V70: -1 | W70: 33 | X70: 25 | AA70: -7 | AB70: -6 | AC70: 4 | AD70: 5 | AE70: -11 | AF70: 8 | AH70: 6 | AI70: 5.5 | AJ70: 0.5 | AK70: 0 | AL70: 8 | AT70: -0.5
A71: 2023-06-06 | B71: -1 | C71: 26 | D71: 34 | F71: 1 | G71: 28 | H71: 33 | J71: 1 | K71: 33 | L71: 28 | N71: -1 | O71: 32 | P71: 28 | R71: -1 | S71: 25 | T71: 37 | V71: -1 | W71: 33 | X71: 26 | AA71: -8 | AB71: -5 | AC71: 5 | AD71: 4 | AE71: -12 | AF71: 7 | AH71: 6.5 | AI71: 5 | AJ71: 0 | AK71: 0.5 | AL71: 8.5 | AT71: 0.5
A72: 2023-06-07 | B72: -1 | C72: 26 | D72: 35 | F72: 1 | G72: 29 | H72: 33 | J72: 1 | K72: 34 | L72: 28 | N72: -1 | O72: 32 | P72: 29 | R72: 1 | S72: 26 | T72: 37 | V72: -1 | W72: 33 | X72: 27 | AA72: -9 | AB72: -4 | AC72: 6 | AD72: 3 | AE72: -11 | AF72: 6 | AH72: 7.5 | AI72: 5 | AJ72: 0 | AK72: 1.5 | AL72: 8.5 | AT72: 1.5
A73: 2023-06-08 | B73: -1 | C73: =C72+IF(B73>0,B73,0) -> 26 | D73: =D72-IF(B73<0,B73,0) -> 36 | F73: -1 | G73: =G72+IF(F73>0,F73,0) -> 29 | H73: =H72-IF(F73<0,F73,0) -> 34 | J73: -1 | K73: 34 | L73: 29 | O73: 32 | P73: 29 | S73: 26 | T73: 37 | V73: -1 | W73: 33 | X73: 28 | AA73: -10 | AB73: -5 | AC73: 5 | AD73: 3 | AE73: -11 | AF73: 5 | AH73: 7.5 | AI73: 5 | AJ73: 0 | AK73: 1 | AL73: 8 | AT73: 1
A74: 2023-06-09 | B74: 1 | C74: 27 | D74: 36 | F74: -1 | G74: 29 | H74: 35 | J74: -1 | K74: =K73+IF(J74>0,J74,0) -> 34 | L74: =L73-IF(J74<0,J74,0) -> 30 | N74: 1 | O74: 33 | P74: 29 | R74: 1 | S74: 27 | T74: 37 | V74: 1 | W74: 34 | X74: 28 | AA74: -9 | AB74: -6 | AC74: 4 | AD74: 4 | AE74: -10 | AF74: 6 | AH74: 6.5 | AI74: 5 | AJ74: 0 | AK74: 0 | AL74: 7 | AT74: 0
A75: 2023-06-10 | B75: 1 | C75: 28 | D75: 36 | F75: 1 | G75: 30 | H75: 35 | J75: -1 | K75: =K74+IF(J75>0,J75,0) -> 34 | L75: =L74-IF(J75<0,J75,0) -> 31 | N75: -1 | O75: 33 | P75: 30 | R75: -1 | S75: 27 | T75: 38 | W75: 34 | X75: 28 | AA75: -8 | AB75: -5 | AC75: 3 | AD75: 3 | AE75: -11 | AF75: 6 | AH75: 5.5 | AI75: 4 | AJ75: 0 | AK75: 0 | AL75: 7 | AT75: 0
A76: 2023-06-11 | B76: -1 | C76: 28 | D76: 37 | F76: 1 | G76: 31 | H76: 35 | J76: -1 | K76: 34 | L76: 32 | N76: 1 | O76: 34 | P76: 30 | R76: -1 | S76: 27 | T76: 39 | V76: -1 | W76: 34 | X76: 29 | AA76: -9 | AB76: -4 | AC76: 2 | AD76: 4 | AE76: -12 | AF76: 5 | AH76: 6.5 | AI76: 4 | AJ76: 1 | AK76: 0 | AL76: 8 | AT76: -1
A77: 2023-06-12 | C77: 28 | D77: 37 | F77: 1 | G77: 32 | H77: 35 | K77: 34 | L77: 32 | O77: 34 | P77: 30 | R77: -1 | S77: 27 | T77: 40 | V77: 1 | W77: 35 | X77: 29 | AA77: -9 | AB77: -3 | AC77: 2 | AD77: 4 | AE77: -13 | AF77: 6 | AH77: 6.5 | AI77: 3.5 | AJ77: 1 | AK77: 0 | AL77: 8.5 | AT77: -1
A78: 2023-06-13 | B78: 1 | C78: 29 | D78: 37 | F78: 1 | G78: 33 | H78: 35 | J78: -1 | K78: 34 | L78: 33 | N78: -1 | O78: 34 | P78: 31 | R78: -1 | S78: 27 | T78: 41 | V78: -1 | W78: 35 | X78: 30 | AA78: -8 | AB78: -2 | AC78: 1 | AD78: 3 | AE78: -14 | AF78: 5 | AH78: 5.5 | AI78: 2.5 | AJ78: 1 | AK78: 0 | AL78: 8.5 | AT78: -1
A79: 2023-06-14 | B79: 1 | C79: 30 | D79: 37 | F79: 1 | G79: 34 | H79: 35 | J79: -1 | K79: 34 | L79: 34 | N79: -1 | O79: 34 | P79: 32 | R79: -1 | S79: 27 | T79: 42 | V79: 1 | W79: 36 | X79: 30 | AA79: -7 | AB79: -1 | AC79: 0 | AD79: 2 | AE79: -15 | AF79: 6 | AH79: 4.5 | AI79: 1.5 | AJ79: 1 | AK79: 0 | AL79: 8.5 | AT79: -1
A80: 2023-06-15 | B80: 1 | C80: 31 | D80: 37 | G80: 34 | H80: 35 | K80: 34 | L80: 34 | N80: -1 | O80: 34 | P80: 33 | S80: 27 | T80: 42 | V80: 1 | W80: 37 | X80: 30 | AA80: -6 | AB80: -1 | AC80: 0 | AD80: 1 | AE80: -15 | AF80: 7 | AH80: 3.5 | AI80: 1 | AJ80: 0.5 | AK80: 0 | AL80: 8 | AT80: -0.5
A81: 2023-06-16 | B81: 1 | C81: 32 | D81: 37 | F81: 1 | G81: 35 | H81: 35 | J81: 1 | K81: 35 | L81: 34 | N81: -1 | O81: 34 | P81: 34 | R81: -1 | S81: 27 | T81: 43 | V81: 1 | W81: 38 | X81: 30 | AA81: -5 | AB81: 0 | AC81: 1 | AD81: 0 | AE81: -16 | AF81: 8 | AH81: 3 | AI81: 0.5 | AJ81: 0 | AK81: 0.5 | AL81: 8.5 | AT81: 0.5
A82: 2023-06-17 | B82: 1 | C82: 33 | D82: 37 | F82: 1 | G82: 36 | H82: 35 | J82: 1 | K82: 36 | L82: 34 | N82: -1 | O82: 34 | P82: 35 | R82: 1 | S82: 28 | T82: 43 | V82: 1 | W82: 39 | X82: 30 | AA82: -4 | AB82: 1 | AC82: 2 | AD82: -1 | AE82: -15 | AF82: 9 | AH82: 3 | AI82: 0.5 | AJ82: 0 | AK82: 1.5 | AL82: 8.5 | AT82: 0.5
A83: 2023-06-18 | B83: -1 | C83: 33 | D83: 38 | F83: 1 | G83: 37 | H83: 35 | J83: 1 | K83: 37 | L83: 34 | N83: -1 | O83: 34 | P83: 36 | R83: 1 | S83: 29 | T83: 43 | V83: -1 | W83: 39 | X83: 31 | AA83: -5 | AB83: 2 | AC83: 3 | AD83: -2 | AE83: -14 | AF83: 8 | AH83: 4 | AI83: 0.5 | AJ83: 0 | AK83: 2.5 | AL83: 8.5 | AT83: 0.5
A84: 2023-06-19 | B84: 1 | C84: 34 | D84: 38 | F84: 1 | G84: 38 | H84: 35 | J84: -1 | K84: 37 | L84: 35 | N84: -1 | O84: 34 | P84: 37 | R84: 1 | S84: 30 | T84: 43 | V84: -1 | W84: 39 | X84: 32 | AA84: -4 | AB84: 3 | AC84: 2 | AD84: -3 | AE84: -13 | AF84: 7 | AH84: 3.5 | AI84: 0 | AJ84: 0.5 | AK84: 3 | AL84: 8 | AT84: -0.5
A85: 2023-06-20 | B85: 1 | C85: 35 | D85: 38 | F85: 1 | G85: 39 | H85: 35 | J85: 1 | K85: 38 | L85: 35 | N85: -1 | O85: 34 | P85: 38 | R85: 1 | S85: 31 | T85: 43 | V85: 1 | W85: 40 | X85: 32 | AA85: -3 | AB85: 4 | AC85: 3 | AD85: -4 | AE85: -12 | AF85: 8 | AH85: 3.5 | AI85: 0 | AJ85: 0.5 | AK85: 4 | AL85: 8 | AT85: -0.5
A86: 2023-06-21 | B86: 1 | C86: 36 | D86: 38 | F86: 1 | G86: 40 | H86: 35 | J86: -1 | K86: 38 | L86: 36 | N86: -1 | O86: 34 | P86: 39 | R86: -1 | S86: 31 | T86: 44 | V86: -1 | W86: 40 | X86: 33 | AA86: -2 | AB86: 5 | AC86: 2 | AD86: -5 | AE86: -13 | AF86: 7 | AH86: 3.5 | AI86: 0 | AJ86: 1.5 | AK86: 5 | AL86: 9 | AT86: -1.5
A87: 2023-06-22 | C87: 36 | D87: 38 | G87: 40 | H87: 35 | K87: 38 | L87: 36 | N87: -1 | O87: 34 | P87: 40 | S87: 31 | T87: 44 | V87: 1 | W87: 41 | X87: 33 | AA87: -2 | AB87: 5 | AC87: 2 | AD87: -6 | AE87: -13 | AF87: 8 | AH87: 3.5 | AI87: 0 | AJ87: 1.5 | AK87: 5.5 | AL87: 9 | AT87: -1.5
A88: 2023-06-23 | C88: 36 | D88: 38 | F88: 1 | G88: 41 | H88: 35 | J88: 1 | K88: 39 | L88: 36 | N88: 1 | O88: 35 | P88: 40 | S88: 31 | T88: 44 | V88: 1 | W88: 42 | X88: 33 | AA88: -2 | AB88: 6 | AC88: 3 | AD88: -5 | AE88: -13 | AF88: 9 | AH88: 4 | AI88: 0 | AJ88: 1.5 | AK88: 5.5 | AL88: 9.5 | AT88: -1.5
A89: 2023-06-24 | B89: 1 | C89: 37 | D89: 38 | F89: -1 | G89: 41 | H89: 36 | J89: -1 | K89: 39 | L89: 37 | N89: -1 | O89: 35 | P89: 41 | R89: -1 | S89: 31 | T89: 45 | W89: 42 | X89: 33 | AA89: -1 | AB89: 5 | AC89: 2 | AD89: -6 | AE89: -14 | AF89: 9 | AH89: 3 | AI89: 0 | AJ89: 1.5 | AK89: 5.5 | AL89: 9.5 | AT89: -1.5
A90: 2023-06-25 | B90: -1 | C90: 37 | D90: 39 | F90: -1 | G90: 41 | H90: 37 | J90: 1 | K90: 40 | L90: 37 | N90: -1 | O90: 35 | P90: 42 | R90: 1 | S90: 32 | T90: 45 | V90: 1 | W90: 43 | X90: 33 | AA90: -2 | AB90: 4 | AC90: 3 | AD90: -7 | AE90: -13 | AF90: 10 | AH90: 3 | AI90: 0 | AJ90: 0.5 | AK90: 5.5 | AL90: 8.5 | AT90: -0.5
A91: 2023-06-26 | C91: 37 | D91: 39 | F91: -1 | G91: 41 | H91: 38 | J91: 1 | K91: 41 | L91: 37 | O91: 35 | P91: 42 | S91: 32 | T91: 45 | V91: 1 | W91: 44 | X91: 33 | AA91: -2 | AB91: 3 | AC91: 4 | AD91: -7 | AE91: -13 | AF91: 11 | AH91: 3 | AI91: 0.5 | AJ91: 0 | AK91: 5.5 | AL91: 8.5 | AT91: 0.5
A92: 2023-06-27 | B92: -1 | C92: 37 | D92: 40 | F92: 1 | G92: 42 | H92: 38 | J92: -1 | K92: 41 | L92: 38 | N92: 1 | O92: 36 | P92: 42 | R92: 1 | S92: 33 | T92: 45 | V92: -1 | W92: 44 | X92: 34 | AA92: -3 | AB92: 4 | AC92: 3 | AD92: -6 | AE92: -12 | AF92: 10 | AH92: 3.5 | AI92: 0 | AJ92: 0.5 | AK92: 5 | AL92: 8 | AT92: -0.5
A93: 2023-06-28 | B93: -1 | C93: 37 | D93: 41 | F93: 1 | G93: 43 | H93: 38 | J93: 1 | K93: 42 | L93: 38 | N93: 1 | O93: 37 | P93: 42 | R93: -1 | S93: 33 | T93: 46 | V93: 1 | W93: 45 | X93: 34 | AA93: -4 | AB93: 5 | AC93: 4 | AD93: -5 | AE93: -13 | AF93: 11 | AH93: 4.5 | AI93: 0 | AJ93: 0.5 | AK93: 5 | AL93: 9 | AT93: -0.5
A94: 2023-06-29 | B94: -1 | C94: 37 | D94: 42 | G94: 43 | H94: 38 | J94: 1 | K94: 43 | L94: 38 | N94: 1 | O94: 38 | P94: 42 | R94: -1 | S94: 33 | T94: 47 | V94: -1 | W94: 45 | X94: 35 | AA94: -5 | AB94: 5 | AC94: 5 | AD94: -4 | AE94: -14 | AF94: 10 | AH94: 5 | AI94: 0 | AJ94: 0 | AK94: 4.5 | AL94: 9.5 | AT94: 0
A95: 2023-06-30 | B95: 1 | C95: 38 | D95: 42 | F95: 1 | G95: 44 | H95: 38 | J95: -1 | K95: 43 | L95: 39 | N95: 1 | O95: 39 | P95: 42 | S95: 33 | T95: 47 | V95: 1 | W95: 46 | X95: 35 | AA95: -4 | AB95: 6 | AC95: 4 | AD95: -3 | AE95: -14 | AF95: 11 | AH95: 5 | AI95: 0 | AJ95: 1 | AK95: 4.5 | AL95: 10 | AT95: -1
A96: 2023-07-01 | B96: -1 | C96: 38 | D96: 43 | F96: -1 | G96: 44 | H96: 39 | J96: 1 | K96: 44 | L96: 39 | N96: -1 | O96: 39 | P96: 43 | R96: 0 | S96: 34 | T96: 48 | V96: 1 | W96: 47 | X96: 35 | AA96: -5 | AB96: 5 | AC96: 5 | AD96: -4 | AE96: -14 | AF96: 12 | AH96: 5 | AI96: 0 | AJ96: 0 | AK96: 4.5 | AL96: 9.5 | AT96: 0
A97: 2023-07-02 | B97: -1 | C97: 38 | D97: 44 | F97: 1 | G97: 45 | H97: 39 | J97: 1 | K97: 45 | L97: 39 | N97: -1 | O97: 39 | P97: 44 | R97: 1 | S97: 35 | T97: 48 | V97: -1 | W97: 47 | X97: 36 | AA97: -6 | AB97: 6 | AC97: 6 | AD97: -5 | AE97: -13 | AF97: 11 | AH97: 6 | AI97: 0 | AJ97: 0 | AK97: 5.5 | AL97: 9.5 | AT97: 0
A98: 2023-07-03 | B98: -1 | C98: 38 | D98: 45 | F98: 1 | G98: 46 | H98: 39 | J98: 1 | K98: 46 | L98: 39 | N98: -1 | O98: =O97+IF(N98>0,N98,0) -> 39 | P98: =P97-IF(N98<0,N98,0) -> 45 | R98: -1 | S98: 35 | T98: 49 | V98: -1 | W98: 47 | X98: 37 | AA98: -7 | AB98: 7 | AC98: 7 | AD98: -6 | AE98: -14 | AF98: 10 | AH98: 7 | AI98: 0 | AJ98: 0 | AK98: 6.5 | AL98: 10.5 | AT98: =IF(AJ98 = 0, MIN(AH98:AI98, AK98:AL98), 0-AJ98) -> 0
A99: 2023-07-04 | B99: 1 | C99: 39 | D99: 45 | F99: 1 | G99: 47 | H99: 39 | J99: -1 | K99: 46 | L99: 40 | N99: 1 | O99: 40 | P99: 45 | R99: -1 | S99: 35 | T99: 50 | W99: 47 | X99: 37 | AA99: =C99-D99 -> -6 | AB99: =G99-H99 -> 8 | AC99: =K99-L99 -> 6 | AD99: =O99-P99 -> -5 | AE99: =S99-T99 -> -15 | AF99: =W99-X99 -> 10 | AH99: 7 | AI99: 0 | AJ99: 1 | AK99: 6.5 | AL99: 11.5 | AT99: -1
A100: 2023-07-05 | B100: 1 | C100: 40 | D100: 45 | F100: 1 | G100: 48 | H100: 39 | J100: -1 | K100: =K99+IF(J100>0,J100,0) -> 46 | L100: =L99-IF(J100<0,J100,0) -> 41 | N100: -1 | O100: 40 | P100: 46 | R100: -1 | S100: 35 | T100: 51 | V100: 1 | W100: 48 | X100: 37 | AA100: -5 | AB100: 9 | AC100: 5 | AD100: -6 | AE100: -16 | AF100: 11 | AH100: 7 | AI100: 0 | AJ100: 2 | AK100: 7.5 | AL100: =(MAX($AA100:$AE100)-AE100)/2 -> 12.5 | AT100: -2
A101: 2023-07-06 | B101: -1 | C101: 40 | D101: 46 | F101: 1 | G101: 49 | H101: 39 | J101: 1 | K101: 47 | L101: 41 | N101: -1 | O101: 40 | P101: 47 | R101: 1 | S101: 36 | T101: 51 | V101: -1 | W101: 48 | X101: 38 | AA101: -6 | AB101: 10 | AC101: 6 | AD101: -7 | AE101: -15 | AF101: 10 | AH101: 8 | AI101: 0 | AJ101: 2 | AK101: 8.5 | AL101: 12.5 | AT101: -2
A102: 2023-07-07 | B102: 1 | C102: 41 | D102: 46 | F102: -1 | G102: 49 | H102: 40 | J102: 1 | K102: 48 | L102: 41 | N102: -1 | O102: 40 | P102: 48 | R102: -1 | S102: 36 | T102: 52 | V102: -1 | W102: 48 | X102: 39 | AA102: -5 | AB102: 9 | AC102: 7 | AD102: -8 | AE102: -16 | AF102: 9 | AH102: 7 | AI102: 0 | AJ102: 1 | AK102: 8.5 | AL102: 12.5 | AT102: -1
A103: 2023-07-08 | B103: -1 | C103: 41 | D103: 47 | F103: 1 | G103: 50 | H103: 40 | J103: -1 | K103: =K102+IF(J103>0,J103,0) -> 48 | L103: =L102-IF(J103<0,J103,0) -> 42 | N103: -1 | O103: 40 | P103: 49 | R103: 1 | S103: 37 | T103: 52 | W103: 48 | X103: 39 | AA103: -6 | AB103: 10 | AC103: 6 | AD103: -9 | AE103: -15 | AF103: 9 | AH103: 8 | AI103: 0 | AJ103: 2 | AK103: 9.5 | AL103: 12.5 | AT103: -2
A104: 2023-07-09 | B104: 1 | C104: 42 | D104: 47 | F104: -1 | G104: 50 | H104: 41 | J104: 1 | K104: 49 | L104: 42 | N104: 1 | O104: 41 | P104: 49 | R104: 1 | S104: 38 | T104: 52 | V104: 1 | W104: 49 | X104: 39 | AA104: -5 | AB104: 9 | AC104: 7 | AD104: -8 | AE104: -14 | AF104: 10 | AH104: 7 | AI104: 0 | AJ104: 1 | AK104: 8.5 | AL104: 11.5 | AT104: -1
A105: 2023-07-10 | C105: 42 | D105: 47 | G105: 50 | H105: 41 | K105: 49 | L105: 42 | O105: 41 | P105: 49 | S105: 38 | T105: 52 | V105: -1 | W105: 49 | X105: 40 | AA105: -5 | AB105: 9 | AC105: 7 | AD105: -8 | AE105: -14 | AF105: 9 | AH105: 7 | AI105: 0 | AJ105: 1 | AK105: 8.5 | AL105: 11.5 | AT105: -1
A106: 2023-07-11 | C106: 42 | D106: 47 | G106: 50 | H106: 41 | K106: 49 | L106: 42 | O106: 41 | P106: 49 | S106: 38 | T106: 52 | V106: 1 | W106: 50 | X106: 40 | AA106: -5 | AB106: 9 | AC106: 7 | AD106: -8 | AE106: -14 | AF106: 10 | AH106: 7 | AI106: 0 | AJ106: 1 | AK106: 8.5 | AL106: 11.5 | AT106: -1
A107: 2023-07-12 | C107: 42 | D107: 47 | G107: 50 | H107: 41 | K107: 49 | L107: 42 | O107: 41 | P107: 49 | S107: 38 | T107: 52 | V107: -1 | W107: 50 | X107: 41 | AA107: -5 | AB107: 9 | AC107: 7 | AD107: -8 | AE107: -14 | AF107: 9 | AH107: 7 | AI107: 0 | AJ107: 1 | AK107: 8.5 | AL107: 11.5 | AT107: -1
A108: 2023-07-13 | C108: 42 | D108: 47 | G108: 50 | H108: 41 | K108: 49 | L108: 42 | O108: 41 | P108: 49 | S108: 38 | T108: 52 | V108: -1 | W108: 50 | X108: 42 | AA108: -5 | AB108: 9 | AC108: 7 | AD108: -8 | AE108: -14 | AF108: 8 | AH108: 7 | AI108: 0 | AJ108: 1 | AK108: 8.5 | AL108: 11.5 | AT108: -1
A109: 2023-07-14 | B109: -1 | C109: 42 | D109: 48 | F109: -1 | G109: 50 | H109: 42 | J109: 1 | K109: 50 | L109: 42 | N109: -1 | O109: 41 | P109: 50 | R109: -1 | S109: =S108+IF(R109>0,R109,0) -> 38 | T109: =T108-IF(R109<0,R109,0) -> 53 | V109: -1 | W109: 50 | X109: 43 | AA109: -6 | AB109: 8 | AC109: 8 | AD109: -9 | AE109: -15 | AF109: 7 | AH109: 7 | AI109: 0 | AJ109: 0 | AK109: 8.5 | AL109: 11.5 | AT109: 0
A110: 2023-07-15 | B110: 1 | C110: 43 | D110: 48 | F110: -1 | G110: 50 | H110: 43 | J110: 1 | K110: 51 | L110: 42 | N110: -1 | O110: 41 | P110: 51 | R110: 1 | S110: 39 | T110: 53 | W110: 50 | X110: 43 | AA110: -5 | AB110: 7 | AC110: 9 | AD110: -10 | AE110: -14 | AF110: 7 | AH110: 7 | AI110: 1 | AJ110: 0 | AK110: 9.5 | AL110: 11.5 | AT110: 1
A111: 2023-07-16 | B111: -1 | C111: 43 | D111: 49 | F111: -1 | G111: 50 | H111: 44 | J111: 1 | K111: 52 | L111: 42 | N111: -1 | O111: 41 | P111: 52 | R111: 1 | S111: 40 | T111: 53 | W111: 50 | X111: 43 | AA111: -6 | AB111: 6 | AC111: 10 | AD111: -11 | AE111: -13 | AF111: 7 | AH111: 8 | AI111: 2 | AJ111: 0 | AK111: 10.5 | AL111: 11.5 | AT111: 2
A112: 2023-07-17 | B112: -1 | C112: 43 | D112: 50 | F112: -1 | G112: 50 | H112: 45 | K112: 52 | L112: 42 | N112: -1 | O112: 41 | P112: 53 | R112: 1 | S112: 41 | T112: 53 | W112: 50 | X112: 43 | AA112: -7 | AB112: 5 | AC112: 10 | AD112: -12 | AE112: -12 | AF112: 7 | AH112: 8.5 | AI112: 2.5 | AJ112: 0 | AK112: 11 | AL112: 11 | AT112: 2.5
A113: 2023-07-18 | B113: 1 | C113: 44 | D113: 50 | F113: -1 | G113: 50 | H113: 46 | J113: -1 | K113: 52 | L113: 43 | N113: -1 | O113: 41 | P113: 54 | R113: 1 | S113: 42 | T113: 53 | W113: 50 | X113: 43 | AA113: -6 | AB113: 4 | AC113: 9 | AD113: -13 | AE113: -11 | AF113: 7 | AH113: 7.5 | AI113: 2.5 | AJ113: 0 | AK113: 11 | AL113: 10 | AT113: 2.5
A114: 2023-07-19 | B114: 1 | C114: 45 | D114: 50 | F114: 1 | G114: 51 | H114: 46 | J114: 1 | K114: 53 | L114: 43 | N114: 1 | O114: 42 | P114: 54 | R114: 1 | S114: 43 | T114: 53 | V114: 1 | W114: 51 | X114: 43 | AA114: -5 | AB114: 5 | AC114: 10 | AD114: -12 | AE114: -10 | AF114: 8 | AH114: 7.5 | AI114: 2.5 | AJ114: 0 | AK114: 11 | AL114: 10 | AT114: 2.5
A115: 2023-07-20 | B115: -1 | C115: 45 | D115: 51 | F115: 1 | G115: 52 | H115: 46 | J115: 1 | K115: 54 | L115: 43 | O115: 42 | P115: 54 | R115: 1 | S115: 44 | T115: 53 | V115: 1 | W115: 52 | X115: 43 | AA115: -6 | AB115: 6 | AC115: 11 | AD115: -12 | AE115: -9 | AF115: 9 | AH115: 8.5 | AI115: 2.5 | AJ115: 0 | AK115: 11.5 | AL115: 10 | AT115: 2.5
A116: 2023-07-21 | B116: 1 | C116: 46 | D116: 51 | F116: 1 | G116: 53 | H116: 46 | J116: -1 | K116: 54 | L116: 44 | N116: -1 | O116: 42 | P116: 55 | R116: -1 | S116: 44 | T116: 54 | V116: 1 | W116: 53 | X116: 43 | AA116: -5 | AB116: 7 | AC116: 10 | AD116: -13 | AE116: -10 | AF116: 10 | AH116: 7.5 | AI116: 1.5 | AJ116: 0 | AK116: 11.5 | AL116: 10 | AT116: 1.5
A117: 2023-07-22 | B117: 1 | C117: 47 | D117: 51 | F117: 1 | G117: 54 | H117: 46 | J117: 1 | K117: 55 | L117: 44 | N117: 1 | O117: 43 | P117: 55 | R117: -1 | S117: 44 | T117: 55 | V117: -1 | W117: 53 | X117: 44 | AA117: -4 | AB117: 8 | AC117: 11 | AD117: -12 | AE117: -11 | AF117: 9 | AH117: 7.5 | AI117: 1.5 | AJ117: 0 | AK117: 11.5 | AL117: 11 | AT117: 1.5
A118: 2023-07-23 | B118: 1 | C118: 48 | D118: 51 | F118: 1 | G118: 55 | H118: 46 | J118: -1 | K118: 55 | L118: 45 | N118: -1 | O118: 43 | P118: 56 | R118: -1 | S118: 44 | T118: 56 | V118: 1 | W118: 54 | X118: 44 | AA118: -3 | AB118: 9 | AC118: 10 | AD118: -13 | AE118: -12 | AF118: 10 | AH118: 6.5 | AI118: 0.5 | AJ118: 0 | AK118: 11.5 | AL118: 11 | AT118: 0.5
A119: 2023-07-24 | C119: 48 | D119: 51 | F119: -1 | G119: 55 | H119: 47 | J119: 1 | K119: 56 | L119: 45 | N119: 1 | O119: 44 | P119: 56 | R119: 1 | S119: 45 | T119: 56 | V119: 1 | W119: 55 | X119: 44 | AA119: -3 | AB119: 8 | AC119: 11 | AD119: -12 | AE119: -11 | AF119: 11 | AH119: 7 | AI119: 1.5 | AJ119: 0 | AK119: 11.5 | AL119: 11 | AT119: 1.5
A120: 2023-07-25 | B120: 1 | C120: 49 | D120: 51 | F120: 1 | G120: 56 | H120: 47 | J120: -1 | K120: 56 | L120: 46 | N120: -1 | O120: 44 | P120: 57 | R120: -1 | S120: 45 | T120: 57 | W120: 55 | X120: 44 | AA120: -2 | AB120: 9 | AC120: 10 | AD120: -13 | AE120: -12 | AF120: 11 | AH120: 6 | AI120: 0.5 | AJ120: 0 | AK120: 11.5 | AL120: 11 | AT120: 0.5
A121: 2023-07-26 | B121: 1 | C121: 50 | D121: 51 | F121: -1 | G121: 56 | H121: 48 | J121: 1 | K121: 57 | L121: 46 | N121: 1 | O121: 45 | P121: 57 | R121: 1 | S121: 46 | T121: 57 | V121: 1 | W121: 56 | X121: 44 | AA121: -1 | AB121: 8 | AC121: 11 | AD121: -12 | AE121: -11 | AF121: 12 | AH121: 6 | AI121: 1.5 | AJ121: 0 | AK121: 11.5 | AL121: 11 | AT121: 1.5
A122: 2023-07-27 | B122: 1 | C122: 51 | D122: 51 | G122: 56 | H122: 48 | K122: 57 | L122: 46 | O122: 45 | P122: 57 | R122: -1 | S122: 46 | T122: 58 | V122: 1 | W122: 57 | X122: 44 | AA122: 0 | AB122: 8 | AC122: 11 | AD122: -12 | AE122: -12 | AF122: 13 | AH122: 5.5 | AI122: 1.5 | AJ122: 0 | AK122: 11.5 | AL122: 11.5 | AT122: 1.5
A123: 2023-07-28 | B123: 1 | C123: 52 | D123: 51 | F123: 1 | G123: 57 | H123: 48 | J123: -1 | K123: 57 | L123: 47 | N123: -1 | O123: 45 | P123: 58 | R123: -1 | S123: 46 | T123: 59 | V123: -1 | W123: 57 | X123: 45 | AA123: 1 | AB123: 9 | AC123: 10 | AD123: -13 | AE123: -13 | AF123: 12 | AH123: 4.5 | AI123: 0.5 | AJ123: 0 | AK123: 11.5 | AL123: 11.5 | AT123: 0.5
A124: 2023-07-29 | B124: 1 | C124: 53 | D124: 51 | F124: -1 | G124: 57 | H124: 49 | J124: -1 | K124: 57 | L124: 48 | N124: 1 | O124: 46 | P124: 58 | R124: -1 | S124: 46 | T124: 60 | W124: 57 | X124: 45 | AA124: 2 | AB124: 8 | AC124: 9 | AD124: -12 | AE124: -14 | AF124: 12 | AH124: 3.5 | AI124: 0.5 | AJ124: 0 | AK124: 10.5 | AL124: 11.5 | AT124: 0.5
A125: 2023-07-30 | B125: -1 | C125: 53 | D125: 52 | F125: 1 | G125: 58 | H125: 49 | J125: -1 | K125: 57 | L125: 49 | N125: 1 | O125: 47 | P125: 58 | R125: 1 | S125: 47 | T125: 60 | V125: -1 | W125: 57 | X125: 46 | AA125: 1 | AB125: 9 | AC125: 8 | AD125: -11 | AE125: -13 | AF125: 11 | AH125: 4 | AI125: 0 | AJ125: 0.5 | AK125: 10 | AL125: 11 | AT125: -0.5
A126: 2023-07-31 | B126: -1 | C126: 53 | D126: 53 | F126: 1 | G126: 59 | H126: 49 | J126: -1 | K126: 57 | L126: 50 | O126: 47 | P126: 58 | S126: 47 | T126: 60 | V126: -1 | W126: 57 | X126: 47 | AA126: 0 | AB126: 10 | AC126: 7 | AD126: -11 | AE126: -13 | AF126: 10 | AH126: 5 | AI126: 0 | AJ126: 1.5 | AK126: 10.5 | AL126: 11.5 | AT126: -1.5
A127: 2023-08-01 | B127: 1 | C127: 54 | D127: 53 | F127: -1 | G127: 59 | H127: 50 | J127: 1 | K127: 58 | L127: 50 | N127: 1 | O127: 48 | P127: 58 | R127: -1 | S127: 47 | T127: 61 | V127: -1 | W127: 57 | X127: 48 | AA127: 1 | AB127: 9 | AC127: 8 | AD127: -10 | AE127: -14 | AF127: 9 | AH127: 4 | AI127: 0 | AJ127: 0.5 | AK127: 9.5 | AL127: 11.5 | AT127: -0.5
A128: 2023-08-02 | B128: 1 | C128: 55 | D128: 53 | F128: -1 | G128: 59 | H128: 51 | J128: -1 | K128: 58 | L128: 51 | N128: -1 | O128: 48 | P128: 59 | R128: 1 | S128: 48 | T128: 61 | V128: 1 | W128: 58 | X128: 48 | AA128: 2 | AB128: 8 | AC128: 7 | AD128: -11 | AE128: -13 | AF128: 10 | AH128: 3 | AI128: 0 | AJ128: 0.5 | AK128: 9.5 | AL128: 10.5 | AT128: -0.5
A129: 2023-08-03 | B129: 1 | C129: 56 | D129: 53 | F129: -1 | G129: 59 | H129: 52 | J129: 1 | K129: 59 | L129: 51 | N129: -1 | O129: 48 | P129: 60 | R129: -1 | S129: 48 | T129: 62 | V129: -1 | W129: 58 | X129: 49 | AA129: 3 | AB129: 7 | AC129: 8 | AD129: -12 | AE129: -14 | AF129: 9 | AH129: 2.5 | AI129: 0.5 | AJ129: 0 | AK129: 10 | AL129: 11 | AT129: 0.5
A130: 2023-08-04 | B130: -1 | C130: 56 | D130: 54 | F130: -1 | G130: 59 | H130: 53 | J130: -1 | K130: 59 | L130: 52 | N130: 1 | O130: 49 | P130: 60 | R130: -1 | S130: 48 | T130: 63 | V130: -1 | W130: 58 | X130: 50 | AA130: 2 | AB130: 6 | AC130: 7 | AD130: -11 | AE130: -15 | AF130: 8 | AH130: 2.5 | AI130: 0.5 | AJ130: 0 | AK130: 9 | AL130: 11 | AT130: =IF(AJ130 = 0, MIN(AH130:AI130, AK130:AL130), 0-AJ130) -> 0.5
A131: 2023-08-05 | B131: 1 | C131: 57 | D131: 54 | F131: -1 | G131: 59 | H131: 54 | J131: 1 | K131: 60 | L131: 52 | N131: -1 | O131: 49 | P131: 61 | R131: 1 | S131: 49 | T131: 63 | W131: 58 | X131: 50 | AA131: =C131-D131 -> 3 | AB131: =G131-H131 -> 5 | AC131: =K131-L131 -> 8 | AD131: =O131-P131 -> -12 | AE131: =S131-T131 -> -14 | AF131: =W131-X131 -> 8 | AH131: 2.5 | AI131: 1.5 | AJ131: 0 | AK131: 10 | AL131: 11 | AT131: 1.5
A132: 2023-08-06 | B132: 1 | C132: 58 | D132: 54 | F132: -1 | G132: 59 | H132: 55 | J132: -1 | K132: 60 | L132: 53 | N132: 1 | O132: 50 | P132: 61 | R132: -1 | S132: 49 | T132: 64 | V132: 1 | W132: =W131+IF(V132>0,V132,0) -> 59 | X132: =X131-IF(V132<0,V132,0) -> 50 | AA132: 4 | AB132: 4 | AC132: 7 | AD132: -11 | AE132: -15 | AF132: 9 | AH132: =(MAX($AA132:$AE132)-AA132)/2 -> 1.5 | AI132: =(MAX($AA132:$AE132)-AB132)/2 -> 1.5 | AJ132: =(MAX($AA132:$AE132)-AC132)/2 -> 0 | AK132: =(MAX($AA132:$AE132)-AD132)/2 -> 9 | AL132: =(MAX($AA132:$AE132)-AE132)/2 -> 11 | AT132: 1.5
A133: =A132+1 -> 2023-08-07 | B133: -1 | C133: 58 | D133: 55 | F133: 1 | G133: 60 | H133: 55 | J133: 1 | K133: 61 | L133: 53 | N133: 1 | O133: 51 | P133: 61 | S133: 49 | T133: 64 | V133: 1 | W133: 60 | X133: 50 | AA133: 3 | AB133: 5 | AC133: 8 | AD133: -10 | AE133: -15 | AF133: 10 | AH133: 2.5 | AI133: 1.5 | AJ133: 0 | AK133: 9 | AL133: 11.5 | AT133: 1.5
A134: 2023-08-08 | B134: 1 | C134: 59 | D134: 55 | F134: -1 | G134: 60 | H134: 56 | J134: -1 | K134: 61 | L134: 54 | N134: -1 | O134: 51 | P134: 62 | R134: -1 | S134: 49 | T134: 65 | W134: 60 | X134: 50 | AA134: 4 | AB134: 4 | AC134: 7 | AD134: -11 | AE134: -16 | AF134: 10 | AH134: 1.5 | AI134: 1.5 | AJ134: 0 | AK134: 9 | AL134: 11.5 | AT134: 1.5
A135: 2023-08-09 | B135: -1 | C135: 59 | D135: 56 | F135: -1 | G135: 60 | H135: 57 | J135: 1 | K135: =K134+IF(J135>0,J135,0) -> 62 | L135: =L134-IF(J135<0,J135,0) -> 54 | N135: -1 | O135: 51 | P135: 63 | R135: 1 | S135: 50 | T135: 65 | V135: -1 | W135: 60 | X135: 51 | AA135: 3 | AB135: 3 | AC135: 8 | AD135: -12 | AE135: -15 | AF135: 9 | AH135: 2.5 | AI135: 2.5 | AJ135: 0 | AK135: 10 | AL135: 11.5 | AT135: 2.5
A136: 2023-08-10 | C136: 59 | D136: 56 | G136: 60 | H136: 57 | K136: 62 | L136: 54 | N136: 1 | O136: 52 | P136: 63 | R136: 1 | S136: 51 | T136: 65 | V136: 1 | W136: 61 | X136: 51 | AA136: 3 | AB136: 3 | AC136: 8 | AD136: -11 | AE136: -14 | AF136: 10 | AH136: 2.5 | AI136: 2.5 | AJ136: 0 | AK136: 9.5 | AL136: 11 | AT136: 2.5
A137: 2023-08-11 | B137: 1 | C137: =C136+IF(B137>0,B137,0) -> 60 | D137: =D136-IF(B137<0,B137,0) -> 56 | F137: 1 | G137: =G136+IF(F137>0,F137,0) -> 61 | H137: =H136-IF(F137<0,F137,0) -> 57 | J137: 1 | K137: 63 | L137: 54 | N137: -1 | O137: 52 | P137: 64 | R137: -1 | S137: 51 | T137: 66 | V137: -1 | W137: 61 | X137: 52 | AA137: 4 | AB137: 4 | AC137: 9 | AD137: -12 | AE137: -15 | AF137: 9 | AH137: 2.5 | AI137: 2.5 | AJ137: 0 | AK137: 10.5 | AL137: 12 | AT137: 2.5
A138: 2023-08-12 | B138: 1 | C138: 61 | D138: 56 | G138: 61 | H138: 57 | J138: 1 | K138: =K137+IF(J138>0,J138,0) -> 64 | L138: =L137-IF(J138<0,J138,0) -> 54 | O138: 52 | P138: 64 | R138: 1 | S138: 52 | T138: 66 | V138: -1 | W138: 61 | X138: 53 | AA138: 5 | AB138: 4 | AC138: 10 | AD138: -12 | AE138: -14 | AF138: 8 | AH138: 2.5 | AI138: 3 | AJ138: 0 | AK138: 11 | AL138: 12 | AT138: 2.5
A139: 2023-08-13 | B139: -1 | C139: 61 | D139: 57 | F139: 0 | G139: 62 | H139: 58 | J139: 1 | K139: 65 | L139: 54 | N139: 0 | O139: 53 | P139: 65 | S139: 52 | T139: 66 | V139: 1 | W139: 62 | X139: 53 | AA139: 4 | AB139: 4 | AC139: 11 | AD139: -12 | AE139: -14 | AF139: 9 | AH139: 3.5 | AI139: 3.5 | AJ139: 0 | AK139: 11.5 | AL139: 12.5 | AT139: 3.5
A140: 2023-08-14 | C140: 61 | D140: 57 | G140: 62 | H140: 58 | K140: 65 | L140: 54 | N140: -1 | O140: 53 | P140: 66 | R140: 1 | S140: 53 | T140: 66 | V140: -1 | W140: 62 | X140: 54 | AA140: 4 | AB140: 4 | AC140: 11 | AD140: -13 | AE140: -13 | AF140: 8 | AH140: 3.5 | AI140: 3.5 | AJ140: 0 | AK140: 12 | AL140: 12 | AT140: 3.5
A141: 2023-08-15 | B141: -1 | C141: 61 | D141: 58 | F141: -1 | G141: 62 | H141: 59 | J141: -1 | K141: 65 | L141: 55 | N141: 1 | O141: 54 | P141: 66 | R141: 1 | S141: 54 | T141: 66 | V141: 1 | W141: 63 | X141: 54 | AA141: 3 | AB141: 3 | AC141: 10 | AD141: -12 | AE141: -12 | AF141: 9 | AH141: 3.5 | AI141: 3.5 | AJ141: 0 | AK141: 11 | AL141: 11 | AT141: 3.5
A142: 2023-08-16 | B142: 1 | C142: 62 | D142: 58 | F142: 1 | G142: 63 | H142: 59 | J142: -1 | K142: 65 | L142: 56 | N142: -1 | O142: 54 | P142: 67 | R142: -1 | S142: 54 | T142: 67 | V142: -1 | W142: 63 | X142: 55 | AA142: 4 | AB142: 4 | AC142: 9 | AD142: -13 | AE142: -13 | AF142: 8 | AH142: 2.5 | AI142: 2.5 | AJ142: 0 | AK142: 11 | AL142: 11 | AT142: 2.5
A143: 2023-08-17 | C143: 62 | D143: 58 | G143: 63 | H143: 59 | J143: -1 | K143: 65 | L143: 57 | O143: 54 | P143: 67 | R143: -1 | S143: 54 | T143: 68 | V143: -1 | W143: 63 | X143: 56 | AA143: 4 | AB143: 4 | AC143: 8 | AD143: -13 | AE143: -14 | AF143: 7 | AH143: 2 | AI143: 2 | AJ143: 0 | AK143: 10.5 | AL143: 11 | AT143: 2
A144: 2023-08-18 | B144: -1 | C144: 62 | D144: 59 | F144: 1 | G144: 64 | H144: 59 | J144: 1 | K144: 66 | L144: 57 | N144: -1 | O144: 54 | P144: 68 | R144: -1 | S144: 54 | T144: 69 | V144: 1 | W144: 64 | X144: 56 | AA144: 3 | AB144: 5 | AC144: 9 | AD144: -14 | AE144: -15 | AF144: 8 | AH144: 3 | AI144: 2 | AJ144: 0 | AK144: 11.5 | AL144: 12 | AT144: 2
A145: 2023-08-19 | B145: 1 | C145: 63 | D145: 59 | F145: -1 | G145: 64 | H145: 60 | J145: 1 | K145: 67 | L145: 57 | N145: 1 | O145: 55 | P145: 68 | R145: -1 | S145: 54 | T145: 70 | V145: 1 | W145: 65 | X145: 56 | AA145: 4 | AB145: 4 | AC145: 10 | AD145: -13 | AE145: -16 | AF145: 9 | AH145: 3 | AI145: 3 | AJ145: 0 | AK145: 11.5 | AL145: 13 | AT145: 3
A146: 2023-08-20 | B146: 1 | C146: 64 | D146: 59 | F146: -1 | G146: 64 | H146: 61 | J146: 1 | K146: 68 | L146: 57 | N146: -1 | O146: 55 | P146: 69 | R146: 1 | S146: 55 | T146: 70 | V146: -1 | W146: 65 | X146: 57 | AA146: 5 | AB146: 3 | AC146: 11 | AD146: -14 | AE146: -15 | AF146: 8 | AH146: 3 | AI146: 4 | AJ146: 0 | AK146: 12.5 | AL146: 13 | AT146: 3
A147: 2023-08-21 | B147: 1 | C147: 65 | D147: 59 | G147: 64 | H147: 61 | K147: 68 | L147: 57 | N147: 1 | O147: 56 | P147: 69 | R147: -1 | S147: 55 | T147: 71 | V147: -1 | W147: 65 | X147: 58 | AA147: 6 | AB147: 3 | AC147: 11 | AD147: -13 | AE147: -16 | AF147: 7 | AH147: 2.5 | AI147: 4 | AJ147: 0 | AK147: 12 | AL147: 13.5 | AT147: 2.5
A148: 2023-08-22 | B148: -1 | C148: 65 | D148: 60 | F148: 1 | G148: 65 | H148: 61 | J148: 1 | K148: 69 | L148: 57 | N148: 1 | O148: 57 | P148: 69 | R148: -1 | S148: 55 | T148: 72 | W148: 65 | X148: 58 | AA148: 5 | AB148: 4 | AC148: 12 | AD148: -12 | AE148: -17 | AF148: 7 | AH148: 3.5 | AI148: 4 | AJ148: 0 | AK148: 12 | AL148: 14.5 | AT148: 3.5
A149: 2023-08-23 | B149: 1 | C149: 66 | D149: 60 | F149: 2 | G149: 67 | H149: 61 | J149: 1 | K149: 70 | L149: 57 | N149: -1 | O149: 57 | P149: 70 | R149: 1 | S149: 56 | T149: 72 | V149: -1 | W149: 65 | X149: 59 | AA149: 6 | AB149: 6 | AC149: 13 | AD149: -13 | AE149: -16 | AF149: 6 | AH149: 3.5 | AI149: 3.5 | AJ149: 0 | AK149: 13 | AL149: 14.5 | AT149: 3.5
A150: 2023-08-24 | B150: 1 | C150: 67 | D150: 60 | F150: -1 | G150: 67 | H150: 62 | K150: 70 | L150: 57 | N150: -1 | O150: 57 | P150: 71 | S150: 56 | T150: 72 | V150: 1 | W150: 66 | X150: 59 | AA150: 7 | AB150: 5 | AC150: 13 | AD150: -14 | AE150: -16 | AF150: 7 | AH150: 3 | AI150: 4 | AJ150: 0 | AK150: 13.5 | AL150: 14.5 | AT150: 3
A151: 2023-08-25 | B151: -1 | C151: 67 | D151: 61 | F151: -1 | G151: 67 | H151: 63 | J151: 1 | K151: 71 | L151: 57 | N151: 1 | O151: 58 | P151: 71 | R151: -1 | S151: 56 | T151: 73 | V151: 1 | W151: 67 | X151: 59 | AA151: 6 | AB151: 4 | AC151: 14 | AD151: -13 | AE151: -17 | AF151: 8 | AH151: 4 | AI151: 5 | AJ151: 0 | AK151: 13.5 | AL151: 15.5 | AT151: 4
A152: 2023-08-26 | B152: 1 | C152: 68 | D152: 61 | F152: 1 | G152: 68 | H152: 63 | J152: 1 | K152: 72 | L152: 57 | N152: -1 | O152: 58 | P152: 72 | R152: -1 | S152: 56 | T152: 74 | V152: 1 | W152: 68 | X152: 59 | AA152: 7 | AB152: 5 | AC152: 15 | AD152: -14 | AE152: -18 | AF152: 9 | AH152: 4 | AI152: 5 | AJ152: 0 | AK152: 14.5 | AL152: 16.5 | AT152: 4
A153: 2023-08-27 | B153: 1 | C153: 69 | D153: 61 | F153: -1 | G153: 68 | H153: 64 | J153: 1 | K153: 73 | L153: 57 | N153: -1 | O153: 58 | P153: 73 | R153: -1 | S153: 56 | T153: 75 | V153: -1 | W153: 68 | X153: 60 | AA153: 8 | AB153: 4 | AC153: 16 | AD153: -15 | AE153: -19 | AF153: 8 | AH153: 4 | AI153: 6 | AJ153: 0 | AK153: 15.5 | AL153: 17.5 | AT153: 4
A154: 2023-08-28 | B154: -1 | C154: 69 | D154: 62 | F154: -1 | G154: 68 | H154: 65 | J154: 1 | K154: 74 | L154: 57 | N154: 1 | O154: 59 | P154: 73 | R154: -1 | S154: 56 | T154: 76 | V154: 1 | W154: 69 | X154: 60 | AA154: 7 | AB154: 3 | AC154: 17 | AD154: -14 | AE154: -20 | AF154: 9 | AH154: 5 | AI154: 7 | AJ154: 0 | AK154: 15.5 | AL154: 18.5 | AT154: 5
A155: 2023-08-29 | B155: 1 | C155: 70 | D155: 62 | F155: -1 | G155: 68 | H155: 66 | J155: -1 | K155: 74 | L155: 58 | N155: 1 | O155: 60 | P155: 73 | R155: 1 | S155: 57 | T155: 76 | V155: -1 | W155: 69 | X155: 61 | AA155: 8 | AB155: 2 | AC155: 16 | AD155: -13 | AE155: -19 | AF155: 8 | AH155: 4 | AI155: 7 | AJ155: 0 | AK155: 14.5 | AL155: 17.5 | AT155: 4
A156: 2023-08-30 | B156: 1 | C156: 71 | D156: 62 | F156: 1 | G156: 69 | H156: 66 | J156: -1 | K156: 74 | L156: 59 | N156: 1 | O156: 61 | P156: 73 | R156: 1 | S156: 58 | T156: 76 | V156: -1 | W156: 69 | X156: 62 | AA156: 9 | AB156: 3 | AC156: 15 | AD156: -12 | AE156: -18 | AF156: 7 | AH156: 3 | AI156: 6 | AJ156: 0 | AK156: 13.5 | AL156: 16.5 | AT156: 3
A157: 2023-08-31 | C157: 71 | D157: 62 | G157: 69 | H157: 66 | K157: 74 | L157: 59 | O157: 61 | P157: 73 | S157: 58 | T157: 76 | V157: 1 | W157: 70 | X157: 62 | AA157: 9 | AB157: 3 | AC157: 15 | AD157: -12 | AE157: -18 | AF157: 8 | AH157: 3 | AI157: 6 | AJ157: 0 | AK157: 13.5 | AL157: 16.5 | AT157: 3
A158: 2023-09-01 | B158: 0 | C158: 72 | D158: 63 | F158: 0 | G158: 70 | H158: 67 | J158: 1 | K158: 75 | L158: 59 | N158: 1 | O158: 62 | P158: 73 | R158: -1 | S158: 58 | T158: 77 | V158: -1 | W158: 70 | X158: 63 | AA158: 9 | AB158: 3 | AC158: 16 | AD158: -11 | AE158: -19 | AF158: 7 | AH158: 3.5 | AI158: 6.5 | AJ158: 0 | AK158: 13.5 | AL158: 17.5 | AT158: 3.5
A159: 2023-09-02 | B159: -1 | C159: 72 | D159: 64 | F159: 1 | G159: 71 | H159: 67 | J159: 1 | K159: 76 | L159: 59 | N159: 1 | O159: 63 | P159: 73 | R159: -1 | S159: 58 | T159: 78 | V159: 1 | W159: 71 | X159: 63 | AA159: 8 | AB159: 4 | AC159: 17 | AD159: -10 | AE159: -20 | AF159: 8 | AH159: 4.5 | AI159: 6.5 | AJ159: 0 | AK159: 13.5 | AL159: 18.5 | AT159: 4.5
A160: 2023-09-03 | B160: 1 | C160: 73 | D160: 64 | F160: -1 | G160: 71 | H160: 68 | J160: -1 | K160: 76 | L160: 60 | N160: -1 | O160: 63 | P160: 74 | R160: 1 | S160: 59 | T160: 78 | V160: -1 | W160: 71 | X160: 64 | AA160: 9 | AB160: 3 | AC160: 16 | AD160: -11 | AE160: -19 | AF160: 7 | AH160: 3.5 | AI160: 6.5 | AJ160: 0 | AK160: 13.5 | AL160: 17.5 | AT160: 3.5
A161: 2023-09-04 | B161: 1 | C161: 74 | D161: 64 | F161: 1 | G161: 72 | H161: 68 | J161: -1 | K161: 76 | L161: 61 | N161: 1 | O161: 64 | P161: 74 | S161: 59 | T161: 78 | V161: -1 | W161: 71 | X161: 65 | AA161: 10 | AB161: 4 | AC161: 15 | AD161: -10 | AE161: -19 | AF161: 6 | AH161: 2.5 | AI161: 5.5 | AJ161: 0 | AK161: 12.5 | AL161: 17 | AT161: 2.5
A162: 2023-09-05 | B162: 1 | C162: 75 | D162: 64 | F162: 1 | G162: 73 | H162: 68 | J162: 1 | K162: 77 | L162: 61 | N162: -1 | O162: =O161+IF(N162>0,N162,0) -> 64 | P162: =P161-IF(N162<0,N162,0) -> 75 | R162: 1 | S162: 60 | T162: 78 | V162: 2 | W162: 73 | X162: 65 | AA162: 11 | AB162: 5 | AC162: 16 | AD162: -11 | AE162: -18 | AF162: 8 | AH162: 2.5 | AI162: 5.5 | AJ162: 0 | AK162: 13.5 | AL162: 17 | AT162: =IF(AJ162 = 0, MIN(AH162:AI162, AK162:AL162), 0-AJ162) -> 2.5
A163: 2023-09-06 | B163: 1 | C163: 76 | D163: 64 | F163: -1 | G163: 73 | H163: 69 | J163: -1 | K163: 77 | L163: 62 | N163: 1 | O163: 65 | P163: 75 | R163: 1 | S163: 61 | T163: 78 | V163: -1 | W163: 73 | X163: 66 | AA163: =C163-D163 -> 12 | AB163: =G163-H163 -> 4 | AC163: =K163-L163 -> 15 | AD163: =O163-P163 -> -10 | AE163: =S163-T163 -> -17 | AF163: =W163-X163 -> 7 | AH163: 1.5 | AI163: 5.5 | AJ163: 0 | AK163: 12.5 | AL163: 16 | AT163: 1.5
A164: 2023-09-07 | B164: -1 | C164: 76 | D164: 65 | G164: 73 | H164: 69 | K164: 77 | L164: 62 | O164: 65 | P164: 75 | R164: -1 | S164: 61 | T164: 79 | V164: 1 | W164: 74 | X164: 66 | AA164: 11 | AB164: 4 | AC164: 15 | AD164: -10 | AE164: -18 | AF164: 8 | AH164: 2 | AI164: 5.5 | AJ164: 0 | AK164: 12.5 | AL164: =(MAX($AA164:$AE164)-AE164)/2 -> 16.5 | AT164: 2
A165: 2023-09-08 | B165: -1 | C165: 76 | D165: 66 | F165: -1 | G165: 73 | H165: 70 | J165: 1 | K165: =K164+IF(J165>0,J165,0) -> 78 | L165: =L164-IF(J165<0,J165,0) -> 62 | N165: -1 | O165: 65 | P165: 76 | R165: 1 | S165: 62 | T165: 79 | V165: 1 | W165: 75 | X165: 66 | AA165: 10 | AB165: 3 | AC165: 16 | AD165: -11 | AE165: -17 | AF165: 9 | AH165: 3 | AI165: 6.5 | AJ165: 0 | AK165: 13.5 | AL165: 16.5 | AT165: 3
A166: 2023-09-09 | B166: -1 | C166: 76 | D166: 67 | F166: -1 | G166: 73 | H166: 71 | J166: 1 | K166: 79 | L166: 62 | N166: 1 | O166: 66 | P166: 76 | R166: 1 | S166: 63 | T166: 79 | W166: 75 | X166: 66 | AA166: 9 | AB166: 2 | AC166: 17 | AD166: -10 | AE166: -16 | AF166: 9 | AH166: 4 | AI166: 7.5 | AJ166: 0 | AK166: 13.5 | AL166: 16.5 | AT166: 4
A167: 2023-09-10 | B167: 1 | C167: 77 | D167: 67 | F167: 1 | G167: 74 | H167: 71 | J167: -1 | K167: 79 | L167: 63 | N167: -1 | O167: 66 | P167: 77 | R167: -1 | S167: 63 | T167: 80 | V167: 1 | W167: 76 | X167: 66 | AA167: 10 | AB167: 3 | AC167: 16 | AD167: -11 | AE167: -17 | AF167: 10 | AH167: 3 | AI167: 6.5 | AJ167: 0 | AK167: 13.5 | AL167: 16.5 | AT167: 3
A168: 2023-09-11 | B168: 1 | C168: 78 | D168: 67 | G168: 74 | H168: 71 | J168: 1 | K168: 80 | L168: 63 | N168: -1 | O168: 66 | P168: 78 | R168: -1 | S168: 63 | T168: 81 | V168: -1 | W168: 76 | X168: 67 | AA168: 11 | AB168: 3 | AC168: 17 | AD168: -12 | AE168: -18 | AF168: 9 | AH168: 3 | AI168: 7 | AJ168: 0 | AK168: 14.5 | AL168: 17.5 | AT168: 3
A169: 2023-09-12 | B169: -1 | C169: 78 | D169: 68 | F169: 1 | G169: 75 | H169: 71 | J169: 1 | K169: 81 | L169: 63 | N169: 1 | O169: 67 | P169: 78 | R169: 1 | S169: 64 | T169: 81 | W169: 76 | X169: 67 | AA169: 10 | AB169: 4 | AC169: 18 | AD169: -11 | AE169: -17 | AF169: 9 | AH169: 4 | AI169: 7 | AJ169: 0 | AK169: 14.5 | AL169: 17.5 | AT169: 4
A170: 2023-09-13 | B170: -1 | C170: 78 | D170: 69 | F170: 1 | G170: 76 | H170: 71 | J170: -1 | K170: 81 | L170: 64 | N170: 1 | O170: 68 | P170: 78 | R170: 1 | S170: 65 | T170: 81 | V170: 1 | W170: 77 | X170: 67 | AA170: 9 | AB170: 5 | AC170: 17 | AD170: -10 | AE170: -16 | AF170: 10 | AH170: 4 | AI170: 6 | AJ170: 0 | AK170: 13.5 | AL170: 16.5 | AT170: 4
A171: 2023-09-14 | C171: 78 | D171: 69 | F171: -1 | G171: 76 | H171: 72 | J171: 1 | K171: 82 | L171: 64 | N171: 1 | O171: 69 | P171: 78 | S171: 65 | T171: 81 | V171: 1 | W171: 78 | X171: 67 | AA171: 9 | AB171: 4 | AC171: 18 | AD171: -9 | AE171: -16 | AF171: 11 | AH171: 4.5 | AI171: 7 | AJ171: 0 | AK171: 13.5 | AL171: 17 | AT171: 4.5
A172: 2023-09-15 | B172: -1 | C172: 78 | D172: 70 | F172: 1 | G172: 77 | H172: 72 | J172: 1 | K172: 83 | L172: 64 | N172: -1 | O172: 69 | P172: 79 | R172: -1 | S172: 65 | T172: 82 | V172: -1 | W172: 78 | X172: 68 | AA172: 8 | AB172: 5 | AC172: 19 | AD172: -10 | AE172: -17 | AF172: 10 | AH172: 5.5 | AI172: 7 | AJ172: 0 | AK172: 14.5 | AL172: 18 | AT172: 5.5
A173: 2023-09-16 | B173: -1 | C173: 78 | D173: 71 | F173: 1 | G173: 78 | H173: 72 | J173: 1 | K173: =K172+IF(J173>0,J173,0) -> 84 | L173: =L172-IF(J173<0,J173,0) -> 64 | N173: -1 | O173: 69 | P173: 80 | R173: -1 | S173: =S172+IF(R173>0,R173,0) -> 65 | T173: =T172-IF(R173<0,R173,0) -> 83 | V173: -1 | W173: 78 | X173: 69 | AA173: 7 | AB173: 6 | AC173: 20 | AD173: -11 | AE173: -18 | AF173: 9 | AH173: 6.5 | AI173: 7 | AJ173: 0 | AK173: 15.5 | AL173: 19 | AT173: 6.5
A174: 2023-09-17 | B174: -1 | C174: 78 | D174: 72 | F174: -1 | G174: 78 | H174: 73 | J174: -1 | K174: 84 | L174: 65 | N174: 1 | O174: 70 | P174: 80 | R174: 1 | S174: 66 | T174: 83 | V174: -1 | W174: 78 | X174: 70 | AA174: 6 | AB174: 5 | AC174: 19 | AD174: -10 | AE174: -17 | AF174: 8 | AH174: 6.5 | AI174: 7 | AJ174: 0 | AK174: 14.5 | AL174: 18 | AT174: 6.5
A175: 2023-09-18 | C175: 78 | D175: 72 | F175: 1 | G175: 79 | H175: 73 | J175: -1 | K175: =K174+IF(J175>0,J175,0) -> 84 | L175: =L174-IF(J175<0,J175,0) -> 66 | O175: 70 | P175: 80 | R175: 1 | S175: 67 | T175: 83 | V175: 1 | W175: 79 | X175: 70 | AA175: 6 | AB175: 6 | AC175: 18 | AD175: -10 | AE175: -16 | AF175: 9 | AH175: 6 | AI175: 6 | AJ175: 0 | AK175: 14 | AL175: 17 | AT175: 6
A176: 2023-09-19 | B176: 1 | C176: 79 | D176: 72 | F176: -1 | G176: 79 | H176: 74 | J176: 1 | K176: 85 | L176: 66 | N176: -1 | O176: 70 | P176: 81 | R176: -1 | S176: 67 | T176: 84 | V176: 1 | W176: 80 | X176: 70 | AA176: 7 | AB176: 5 | AC176: 19 | AD176: -11 | AE176: -17 | AF176: 10 | AH176: 6 | AI176: 7 | AJ176: 0 | AK176: 15 | AL176: 18 | AT176: 6
A177: 2023-09-20 | B177: -1 | C177: 79 | D177: 73 | F177: -1 | G177: 79 | H177: 75 | J177: 1 | K177: 86 | L177: 66 | N177: 1 | O177: 71 | P177: 81 | R177: -1 | S177: 67 | T177: 85 | V177: 1 | W177: 81 | X177: 70 | AA177: 6 | AB177: 4 | AC177: 20 | AD177: -10 | AE177: -18 | AF177: 11 | AH177: 7 | AI177: 8 | AJ177: 0 | AK177: 15 | AL177: 19 | AT177: 7
A178: 2023-09-21 | B178: -1 | C178: 79 | D178: 74 | G178: 79 | H178: 75 | J178: 1 | K178: 87 | L178: 66 | N178: 1 | O178: 72 | P178: 81 | R178: -1 | S178: 67 | T178: 86 | V178: 1 | W178: 82 | X178: 70 | AA178: 5 | AB178: 4 | AC178: 21 | AD178: -9 | AE178: -19 | AF178: 12 | AH178: 8 | AI178: 8.5 | AJ178: 0 | AK178: 15 | AL178: 20 | AT178: 8
A179: 2023-09-22 | B179: 1 | C179: 80 | D179: 74 | F179: -1 | G179: 79 | H179: 76 | J179: 1 | K179: 88 | L179: 66 | N179: 1 | O179: 73 | P179: 81 | R179: -1 | S179: 67 | T179: 87 | V179: -1 | W179: 82 | X179: 71 | AA179: 6 | AB179: 3 | AC179: 22 | AD179: -8 | AE179: -20 | AF179: 11 | AH179: 8 | AI179: 9.5 | AJ179: 0 | AK179: 15 | AL179: 21 | AT179: 8
A180: 2023-09-23 | B180: 1 | C180: 81 | D180: 74 | F180: -1 | G180: 79 | H180: 77 | J180: -1 | K180: 88 | L180: 67 | N180: 1 | O180: 74 | P180: 81 | R180: 1 | S180: 68 | T180: 87 | W180: 82 | X180: 71 | AA180: 7 | AB180: 2 | AC180: 21 | AD180: -7 | AE180: -19 | AF180: 11 | AH180: 7 | AI180: 9.5 | AJ180: 0 | AK180: 14 | AL180: 20 | AP180: Team | AQ180: GB | AR180: % | AT180: 7
A181: 2023-09-24 | B181: 1 | C181: 82 | D181: 74 | F181: 1 | G181: 80 | H181: 77 | J181: -1 | K181: 88 | L181: 68 | N181: -1 | O181: 74 | P181: 82 | R181: -1 | S181: 68 | T181: 88 | V181: -1 | W181: 82 | X181: 72 | AA181: 8 | AB181: 3 | AC181: 20 | AD181: -8 | AE181: -20 | AF181: 10 | AH181: 6 | AI181: 8.5 | AJ181: 0 | AK181: 14 | AL181: 20 | AP181: =AJ$1 -> MIL | AQ181: =AJ$190 -> 0 | AR181: =AJ$192 -> 0.5679012346 | AT181: 6
A182: 2023-09-25 | C182: 82 | D182: 74 | G182: 80 | H182: 77 | K182: 88 | L182: 68 | O182: 74 | P182: 82 | S182: 68 | T182: 88 | V182: 1 | W182: 83 | X182: 72 | AA182: 8 | AB182: 3 | AC182: 20 | AD182: -8 | AE182: -20 | AF182: 11 | AH182: 6 | AI182: 8.5 | AJ182: 0 | AK182: 14 | AL182: 20 | AP182: =AH$1 -> CHC | AQ182: =AH$190 -> 9 | AR182: =AH$192 -> 0.512345679 | AT182: 6
A183: 2023-09-26 | B183: -1 | C183: 82 | D183: 75 | F183: 1 | G183: 81 | H183: 77 | J183: -1 | K183: 88 | L183: 69 | N183: -1 | O183: 74 | P183: 83 | R183: 1 | S183: 69 | T183: 88 | V183: -1 | W183: 83 | X183: 73 | AA183: 7 | AB183: 4 | AC183: 19 | AD183: -9 | AE183: -19 | AF183: 10 | AH183: 6 | AI183: 7.5 | AJ183: 0 | AK183: 14 | AL183: 19 | AP183: =AI$1 -> CIN | AQ183: =AI$190 -> 10 | AR183: =AI$192 -> 0.5061728395 | AT183: 6
A184: 2023-09-27 | B184: -1 | C184: 82 | D184: 76 | F184: -1 | G184: 81 | H184: 78 | J184: 1 | K184: =K183+IF(J184>0,J184,0) -> 89 | L184: =L183-IF(J184<0,J184,0) -> 69 | N184: -1 | O184: 74 | P184: 84 | R184: -1 | S184: 69 | T184: 89 | V184: 1 | W184: 84 | X184: 73 | AA184: 6 | AB184: 3 | AC184: 20 | AD184: -10 | AE184: -20 | AF184: 11 | AH184: 7 | AI184: 8.5 | AJ184: 0 | AK184: 15 | AL184: 20 | AP184: =AK$1 -> PIT | AQ184: =AK$190 -> 16 | AR184: =AK$192 -> 0.4691358025 | AT184: 7
A185: 2023-09-28 | B185: -1 | C185: 82 | D185: 77 | G185: 81 | H185: 78 | J185: 1 | K185: 90 | L185: 69 | N185: 1 | O185: 75 | P185: 84 | R185: -1 | S185: 69 | T185: 90 | V185: -1 | W185: 84 | X185: 74 | AA185: 5 | AB185: 3 | AC185: 21 | AD185: -9 | AE185: -21 | AF185: 10 | AH185: 8 | AI185: 9 | AJ185: 0 | AK185: 15 | AL185: 21 | AP185: =AL$1 -> STL | AQ185: =AL$190 -> 21 | AR185: =AL$192 -> 0.4382716049 | AT185: 8
A186: 2023-09-29 | B186: -1 | C186: 82 | D186: 78 | F186: 1 | G186: 82 | H186: 78 | J186: 1 | K186: =K185+IF(J186>0,J186,0) -> 91 | L186: =L185-IF(J186<0,J186,0) -> 69 | N186: -1 | O186: 75 | P186: 85 | R186: -1 | S186: 69 | T186: 91 | V186: -1 | W186: 84 | X186: 75 | AA186: =C186-D186 -> 4 | AB186: =G186-H186 -> 4 | AC186: =K186-L186 -> 22 | AD186: =O186-P186 -> -10 | AE186: =S186-T186 -> -22 | AF186: =W186-X186 -> 9 | AH186: =(MAX($AA186:$AE186)-AA186)/2 -> 9 | AI186: =(MAX($AA186:$AE186)-AB186)/2 -> 9 | AJ186: =(MAX($AA186:$AE186)-AC186)/2 -> 0 | AK186: =(MAX($AA186:$AE186)-AD186)/2 -> 16 | AL186: =(MAX($AA186:$AE186)-AE186)/2 -> 22 | AT186: 9
A187: 2023-09-30 | B187: 1 | C187: 83 | D187: 78 | F187: -1 | G187: 82 | H187: 79 | J187: -1 | K187: 91 | L187: 70 | N187: -1 | O187: 75 | P187: 86 | R187: 1 | S187: 70 | T187: 91 | V187: 1 | W187: 85 | X187: 75 | AA187: 5 | AB187: 3 | AC187: 21 | AD187: -11 | AE187: -21 | AF187: 10 | AH187: 8 | AI187: 9 | AJ187: 0 | AK187: 16 | AL187: 21 | AT187: 8
A188: 2023-10-01 | B188: -1 | C188: 83 | D188: 79 | F188: -1 | G188: 82 | H188: 80 | J188: 1 | K188: =K187+IF(J188>0,J188,0) -> 92 | L188: =L187-IF(J188<0,J188,0) -> 70 | N188: 1 | O188: 76 | P188: 86 | R188: 1 | S188: 71 | T188: 91 | V188: 1 | W188: 86 | X188: 75 | AA188: =C188-D188 -> 4 | AB188: =G188-H188 -> 2 | AC188: =K188-L188 -> 22 | AD188: =O188-P188 -> -10 | AE188: =S188-T188 -> -20 | AF188: =W188-X188 -> 11 | AH188: =(MAX($AA188:$AE188)-AA188)/2 -> 9 | AI188: =(MAX($AA188:$AE188)-AB188)/2 -> 10 | AJ188: =(MAX($AA188:$AE188)-AC188)/2 -> 0 | AK188: =(MAX($AA188:$AE188)-AD188)/2 -> 16 | AL188: =(MAX($AA188:$AE188)-AE188)/2 -> 21 | AT188: =IF(AJ188 = 0, MIN(AH188:AI188, AK188:AL188), 0-AJ188) -> 9
A189: 2023-10-02 | C189: 83 | D189: 79 | G189: 82 | H189: 80 | K189: 92 | L189: 70 | O189: 76 | P189: 86 | S189: 71 | T189: 91 | V189: -1 | W189: 86 | X189: 76 | AA189: 4 | AB189: 2 | AC189: 22 | AD189: -10 | AE189: -20 | AF189: 10 | AH189: 9 | AI189: 10 | AJ189: 0 | AK189: 16 | AL189: 21 | AT189: 9
A190: 2023-10-03 | C190: 83 | D190: 79 | G190: 82 | H190: 80 | K190: 92 | L190: 70 | O190: 76 | P190: 86 | S190: 71 | T190: 91 | W190: 86 | X190: 76 | AA190: 4 | AB190: 2 | AC190: 22 | AD190: -10 | AE190: -20 | AF190: 10 | AH190: 9 | AI190: 10 | AJ190: 0 | AK190: 16 | AL190: 21 | AT190: 9
AH192: =C190/(C190+D190) -> 0.512345679 | AI192: =G190/(G190+H190) -> 0.5061728395 | AJ192: =K190/(K190+L190) -> 0.5679012346 | AK192: =O190/(O190+P190) -> 0.4691358025 | AL192: =S190/(S190+T190) -> 0.4382716049
